Workbook

Sheet S&P Weighted
A1: S&P 500 Companies by Weight
C2: Click Icon to left of Ticker to view live updates
A3: # | B3: Company | C3: Symbol | D3: Industry | E3: Weight | F3: Price | G3: Chg | H3: % Chg | I3: P/E | J3: Market cap | K3: Click to Update to Current Market Data
A4: 1 | B4: Apple Inc. | D4: =_FV(Table_0[[#This Row],[Symbol]],"Industry") -> Computers, Phones & Household Electronics | E4: 6.237231 | F4: 130.79 | G4: -4.67 | H4: (-3.44%) | I4: =_FV(Table_0[[#This Row],[Symbol]],"P/E",TRUE) -> 22.1973 | J4: =_FV(Table_0[[#This Row],[Symbol]],"Market cap",TRUE) -> 2080543474200
A5: 2 | B5: Microsoft Corporation | D5: =_FV(Table_0[[#This Row],[Symbol]],"Industry") -> Software & IT Services | E5: 5.610969 | F5: 234.9 | G5: -9.53 | H5: (-3.90%) | I5: =_FV(Table_0[[#This Row],[Symbol]],"P/E",TRUE) -> 26.3382 | J5: =_FV(Table_0[[#This Row],[Symbol]],"Market cap",TRUE) -> 1751130252430
A6: 3 | B6: Amazon.com Inc. | D6: =_FV(Table_0[[#This Row],[Symbol]],"Industry") -> Diversified Retail | E6: 2.371513 | F6: 82.61 | G6: -4.17 | H6: (-4.80%) | I6: =_FV(Table_0[[#This Row],[Symbol]],"P/E",TRUE) -> 80.0745 | J6: =_FV(Table_0[[#This Row],[Symbol]],"Market cap",TRUE) -> 885197600000
A7: 4 | B7: Berkshire Hathaway Inc. Class B | D7: =_FV(Table_0[[#This Row],[Symbol]],"Industry") -> Consumer Goods Conglomerates | E7: 1.707853 | F7: 299.17 | G7: -8.65 | H7: (-2.81%) | I7: =_FV(Table_0[[#This Row],[Symbol]],"P/E",TRUE) -> 58.4052 | J7: =_FV(Table_0[[#This Row],[Symbol]],"Market cap",TRUE) -> 679588500000
A8: 5 | B8: Alphabet Inc. Class A | D8: =_FV(Table_0[[#This Row],[Symbol]],"Industry") -> Software & IT Services | E8: 1.64767 | F8: 86.83 | G8: -2.75 | H8: (-3.07%) | I8: =_FV(Table_0[[#This Row],[Symbol]],"P/E",TRUE) -> 17.7915 | J8: =_FV(Table_0[[#This Row],[Symbol]],"Market cap",TRUE) -> 1163512000000
A9: 6 | B9: UnitedHealth Group Incorporated | D9: =_FV(Table_0[[#This Row],[Symbol]],"Industry") -> Healthcare Providers & Services | E9: 1.517855 | F9: 523.65 | G9: -3.89 | H9: (-0.74%) | I9: =_FV(Table_0[[#This Row],[Symbol]],"P/E",TRUE) -> 25.8405 | J9: =_FV(Table_0[[#This Row],[Symbol]],"Market cap",TRUE) -> 489271999649
A10: 7 | B10: Alphabet Inc. Class C | D10: =_FV(Table_0[[#This Row],[Symbol]],"Industry") -> Software & IT Services | E10: 1.471514 | F10: 87.47 | G10: -2.78 | H10: (-3.08%) | I10: =_FV(Table_0[[#This Row],[Symbol]],"P/E",TRUE) -> 17.9191 | J10: =_FV(Table_0[[#This Row],[Symbol]],"Market cap",TRUE) -> 1163512000000
A11: 8 | B11: Johnson & Johnson | D11: =_FV(Table_0[[#This Row],[Symbol]],"Industry") -> Pharmaceuticals | E11: 1.432063 | F11: 176.15 | G11: -1.53 | H11: (-0.86%) | I11: =_FV(Table_0[[#This Row],[Symbol]],"P/E",TRUE) -> 24.7367 | J11: =_FV(Table_0[[#This Row],[Symbol]],"Market cap",TRUE) -> 460541356600
A12: 9 | B12: Exxon Mobil Corporation | D12: =_FV(Table_0[[#This Row],[Symbol]],"Industry") -> Oil & Gas | E12: 1.370404 | F12: 105.2 | G12: -2.86 | H12: (-2.65%) | I12: =_FV(Table_0[[#This Row],[Symbol]],"P/E",TRUE) -> 8.8129 | J12: =_FV(Table_0[[#This Row],[Symbol]],"Market cap",TRUE) -> 433213600000
A13: 10 | B13: NVIDIA Corporation | D13: =_FV(Table_0[[#This Row],[Symbol]],"Industry") -> Semiconductors & Semiconductor Equipment | E13: 1.266634 | F13: 149.52 | G13: -15.49 | H13: (-9.39%) | I13: =_FV(Table_0[[#This Row],[Symbol]],"P/E",TRUE) -> 70.1866 | J13: =_FV(Table_0[[#This Row],[Symbol]],"Market cap",TRUE) -> 367745400000
A14: 11 | B14: JPMorgan Chase & Co. | D14: =_FV(Table_0[[#This Row],[Symbol]],"Industry") -> Banking Services | E14: 1.193737 | F14: 128.61 | G14: -3.55 | H14: (-2.69%) | I14: =_FV(Table_0[[#This Row],[Symbol]],"P/E",TRUE) -> 11.1589 | J14: =_FV(Table_0[[#This Row],[Symbol]],"Market cap",TRUE) -> 377239495050
A15: 12 | B15: Tesla Inc | D15: =_FV(Table_0[[#This Row],[Symbol]],"Industry") -> Automobiles & Auto Parts | E15: 1.13707 | F15: 124.12 | G15: -13.45 | H15: (-9.78%) | I15: =_FV(Table_0[[#This Row],[Symbol]],"P/E",TRUE) -> 42.3808 | J15: =_FV(Table_0[[#This Row],[Symbol]],"Market cap",TRUE) -> 391892811960
A16: 13 | B16: Procter & Gamble Company | D16: =_FV(Table_0[[#This Row],[Symbol]],"Industry") -> Personal & Household Products & Services | E16: 1.108017 | F16: 151.2 | G16: -0.64 | H16: (-0.42%) | I16: =_FV(Table_0[[#This Row],[Symbol]],"P/E",TRUE) -> 26.3212 | J16: =_FV(Table_0[[#This Row],[Symbol]],"Market cap",TRUE) -> 358298640000
A17: 14 | B17: Visa Inc. Class A | D17: =_FV(Table_0[[#This Row],[Symbol]],"Industry") -> Software & IT Services | E17: 1.041262 | F17: 203.5 | G17: -3.31 | H17: (-1.60%) | I17: =_FV(Table_0[[#This Row],[Symbol]],"P/E",TRUE) -> 29.5866 | J17: =_FV(Table_0[[#This Row],[Symbol]],"Market cap",TRUE) -> 383291232500
A18: 15 | B18: Home Depot Inc. | D18: =_FV(Table_0[[#This Row],[Symbol]],"Industry") -> Specialty Retailers | E18: 1.006205 | F18: 312.63 | G18: -6.74 | H18: (-2.11%) | I18: =_FV(Table_0[[#This Row],[Symbol]],"P/E",TRUE) -> 19.2455 | J18: =_FV(Table_0[[#This Row],[Symbol]],"Market cap",TRUE) -> 318623023250
A19: 16 | B19: Chevron Corporation | D19: =_FV(Table_0[[#This Row],[Symbol]],"Industry") -> Oil & Gas | E19: 0.957024 | F19: 170.53 | G19: -4.17 | H19: (-2.39%) | I19: =_FV(Table_0[[#This Row],[Symbol]],"P/E",TRUE) -> 9.9387 | J19: =_FV(Table_0[[#This Row],[Symbol]],"Market cap",TRUE) -> 329743458670
A20: 17 | B20: Mastercard Incorporated Class A | D20: =_FV(Table_0[[#This Row],[Symbol]],"Industry") -> Software & IT Services | E20: 0.90414 | F20: 338.71 | G20: -6.98 | H20: (-2.02%) | I20: =_FV(Table_0[[#This Row],[Symbol]],"P/E",TRUE) -> 34.5341 | J20: =_FV(Table_0[[#This Row],[Symbol]],"Market cap",TRUE) -> 325694507250
A21: 18 | B21: Eli Lilly and Company | D21: =_FV(Table_0[[#This Row],[Symbol]],"Industry") -> Pharmaceuticals | E21: 0.893737 | F21: 364.7 | G21: -3.31 | H21: (-0.90%) | I21: =_FV(Table_0[[#This Row],[Symbol]],"P/E",TRUE) -> 55.3067 | J21: =_FV(Table_0[[#This Row],[Symbol]],"Market cap",TRUE) -> 346529880130
A22: 19 | B22: Pfizer Inc. | D22: =_FV(Table_0[[#This Row],[Symbol]],"Industry") -> Pharmaceuticals | E22: 0.892977 | F22: 51.01 | G22: -0.65 | H22: (-1.26%) | I22: =_FV(Table_0[[#This Row],[Symbol]],"P/E",TRUE) -> 9.7983 | J22: =_FV(Table_0[[#This Row],[Symbol]],"Market cap",TRUE) -> 286390718948
A23: 20 | B23: AbbVie Inc. | D23: =_FV(Table_0[[#This Row],[Symbol]],"Industry") -> Pharmaceuticals | E23: 0.883371 | F23: 162.09 | G23: -0.12 | H23: (-0.07%) | I23: =_FV(Table_0[[#This Row],[Symbol]],"P/E",TRUE) -> 21.609 | J23: =_FV(Table_0[[#This Row],[Symbol]],"Market cap",TRUE) -> 286617553600
A24: 21 | B24: Merck & Co. Inc. | D24: =_FV(Table_0[[#This Row],[Symbol]],"Industry") -> Pharmaceuticals | E24: 0.867492 | F24: 110.73 | G24: -0.38 | H24: (-0.34%) | I24: =_FV(Table_0[[#This Row],[Symbol]],"P/E",TRUE) -> 18.4071 | J24: =_FV(Table_0[[#This Row],[Symbol]],"Market cap",TRUE) -> 280719045120
A25: 22 | B25: Meta Platforms Inc. Class A | D25: =_FV(Table_0[[#This Row],[Symbol]],"Industry") -> Software & IT Services | E25: 0.829286 | F25: 115.16 | G25: -4.6 | H25: (-3.84%) | I25: =_FV(Table_0[[#This Row],[Symbol]],"P/E",TRUE) -> 11.4245 | J25: =_FV(Table_0[[#This Row],[Symbol]],"Market cap",TRUE) -> 305352382840
A26: 23 | B26: PepsiCo Inc. | D26: =_FV(Table_0[[#This Row],[Symbol]],"Industry") -> Beverages | E26: 0.77426 | F26: 180.08 | G26: -2.42 | H26: (-1.33%) | I26: =_FV(Table_0[[#This Row],[Symbol]],"P/E",TRUE) -> 25.8832 | J26: =_FV(Table_0[[#This Row],[Symbol]],"Market cap",TRUE) -> 248097836720
A27: 24 | B27: Coca-Cola Company | D27: =_FV(Table_0[[#This Row],[Symbol]],"Industry") -> Beverages | E27: 0.764657 | F27: 62.98 | G27: -0.83 | H27: (-1.29%) | I27: =_FV(Table_0[[#This Row],[Symbol]],"P/E",TRUE) -> 27.9702 | J27: =_FV(Table_0[[#This Row],[Symbol]],"Market cap",TRUE) -> 272357828740
A28: 25 | B28: Bank of America Corp | D28: =_FV(Table_0[[#This Row],[Symbol]],"Industry") -> Banking Services | E28: 0.702382 | F28: 31.99 | G28: -0.69 | H28: (-2.11%) | I28: =_FV(Table_0[[#This Row],[Symbol]],"P/E",TRUE) -> 10.3535 | J28: =_FV(Table_0[[#This Row],[Symbol]],"Market cap",TRUE) -> 256597487520
A29: 26 | B29: Broadcom Inc. | D29: =_FV(Table_0[[#This Row],[Symbol]],"Industry") -> Semiconductors & Semiconductor Equipment | E29: 0.699963 | F29: 548.63 | G29: -12.61 | H29: (-2.25%) | I29: =_FV(Table_0[[#This Row],[Symbol]],"P/E",TRUE) -> 21.1526 | J29: =_FV(Table_0[[#This Row],[Symbol]],"Market cap",TRUE) -> 229262761612
A30: 27 | B30: Thermo Fisher Scientific Inc. | D30: =_FV(Table_0[[#This Row],[Symbol]],"Industry") -> Healthcare Equipment & Supplies | E30: 0.652035 | F30: 532.53 | G30: -7.36 | H30: (-1.36%) | I30: =_FV(Table_0[[#This Row],[Symbol]],"P/E",TRUE) -> 30.3444 | J30: =_FV(Table_0[[#This Row],[Symbol]],"Market cap",TRUE) -> 208875532648
A31: 28 | B31: Walmart Inc. | D31: =_FV(Table_0[[#This Row],[Symbol]],"Industry") -> Food & Drug Retailing | E31: 0.630993 | F31: 142.47 | G31: -2.71 | H31: (-1.87%) | I31: =_FV(Table_0[[#This Row],[Symbol]],"P/E",TRUE) -> 44.8607 | J31: =_FV(Table_0[[#This Row],[Symbol]],"Market cap",TRUE) -> 384159159999
A32: 29 | B32: Costco Wholesale Corporation | D32: =_FV(Table_0[[#This Row],[Symbol]],"Industry") -> Diversified Retail | E32: 0.629771 | F32: 455.17 | G32: -6.9 | H32: (-1.49%) | I32: =_FV(Table_0[[#This Row],[Symbol]],"P/E",TRUE) -> 34.9246 | J32: =_FV(Table_0[[#This Row],[Symbol]],"Market cap",TRUE) -> 202009792740
A33: 30 | B33: McDonald's Corporation | D33: =_FV(Table_0[[#This Row],[Symbol]],"Industry") -> Hotels & Entertainment Services | E33: 0.604669 | F33: 264.47 | G33: -3.69 | H33: (-1.38%) | I33: =_FV(Table_0[[#This Row],[Symbol]],"P/E",TRUE) -> 33.7788 | J33: =_FV(Table_0[[#This Row],[Symbol]],"Market cap",TRUE) -> 193704148833
A34: 31 | B34: Cisco Systems Inc. | D34: =_FV(Table_0[[#This Row],[Symbol]],"Industry") -> Communications & Networking | E34: 0.60261 | F34: 46.83 | G34: -0.83 | H34: (-1.75%) | I34: =_FV(Table_0[[#This Row],[Symbol]],"P/E",TRUE) -> 17.2492 | J34: =_FV(Table_0[[#This Row],[Symbol]],"Market cap",TRUE) -> 192366031078
A35: 32 | B35: Abbott Laboratories | D35: =_FV(Table_0[[#This Row],[Symbol]],"Industry") -> Healthcare Equipment & Supplies | E35: 0.580422 | F35: 106.7 | G35: -1.44 | H35: (-1.33%) | I35: =_FV(Table_0[[#This Row],[Symbol]],"P/E",TRUE) -> 24.2918 | J35: =_FV(Table_0[[#This Row],[Symbol]],"Market cap",TRUE) -> 185969602840
A36: 33 | B36: Danaher Corporation | D36: =_FV(Table_0[[#This Row],[Symbol]],"Industry") -> Healthcare Equipment & Supplies | E36: 0.526531 | F36: 255.8 | G36: -5.18 | H36: (-1.98%) | I36: =_FV(Table_0[[#This Row],[Symbol]],"P/E",TRUE) -> 28.8089 | J36: =_FV(Table_0[[#This Row],[Symbol]],"Market cap",TRUE) -> 186220138287
A37: 34 | B37: Accenture Plc Class A | D37: =_FV(Table_0[[#This Row],[Symbol]],"Industry") -> Software & IT Services | E37: 0.521126 | F37: 262.17 | G37: -6.76 | H37: (-2.51%) | I37: =_FV(Table_0[[#This Row],[Symbol]],"P/E",TRUE) -> 24.417 | J37: =_FV(Table_0[[#This Row],[Symbol]],"Market cap",TRUE) -> 172557041964
A38: 35 | B38: NextEra Energy Inc. | D38: =_FV(Table_0[[#This Row],[Symbol]],"Industry") -> Electrical Utilities & IPPs | E38: 0.517997 | F38: 82.69 | G38: -1.96 | H38: (-2.32%) | I38: =_FV(Table_0[[#This Row],[Symbol]],"P/E",TRUE) -> 43.7102 | J38: =_FV(Table_0[[#This Row],[Symbol]],"Market cap",TRUE) -> 164318591160
A39: 36 | B39: Linde plc | D39: =_FV(Table_0[[#This Row],[Symbol]],"Industry") -> Chemicals | E39: 0.500366 | F39: 323.31 | G39: -5.36 | H39: (-1.63%) | I39: =_FV(Table_0[[#This Row],[Symbol]],"P/E",TRUE) -> 43.5064 | J39: =_FV(Table_0[[#This Row],[Symbol]],"Market cap",TRUE) -> 159249799917
A40: 37 | B40: Adobe Incorporated | D40: =_FV(Table_0[[#This Row],[Symbol]],"Industry") -> Software & IT Services | E40: 0.490255 | F40: 332.88 | G40: -8.51 | H40: (-2.49%) | I40: =_FV(Table_0[[#This Row],[Symbol]],"P/E",TRUE) -> 33.7949 | J40: =_FV(Table_0[[#This Row],[Symbol]],"Market cap",TRUE) -> 154753587500
A41: 38 | B41: Verizon Communications Inc. | D41: =_FV(Table_0[[#This Row],[Symbol]],"Industry") -> Telecommunications Services | E41: 0.488606 | F41: 37.39 | G41: -0.39 | H41: (-1.03%) | I41: =_FV(Table_0[[#This Row],[Symbol]],"P/E",TRUE) -> 8.2153 | J41: =_FV(Table_0[[#This Row],[Symbol]],"Market cap",TRUE) -> 157010158545
A42: 39 | B42: Walt Disney Company | D42: =_FV(Table_0[[#This Row],[Symbol]],"Industry") -> Media & Publishing | E42: 0.487962 | F42: 84.78 | G42: -2.14 | H42: (-2.46%) | I42: =_FV(Table_0[[#This Row],[Symbol]],"P/E",TRUE) -> 49.7231 | J42: =_FV(Table_0[[#This Row],[Symbol]],"Market cap",TRUE) -> 154604129760
A43: 40 | B43: Wells Fargo & Company | D43: =_FV(Table_0[[#This Row],[Symbol]],"Industry") -> Banking Services | E43: 0.482503 | F43: 40.1 | G43: -1.02 | H43: (-2.48%) | I43: =_FV(Table_0[[#This Row],[Symbol]],"P/E",TRUE) -> 10.6805 | J43: =_FV(Table_0[[#This Row],[Symbol]],"Market cap",TRUE) -> 152800689100
A44: 41 | B44: Bristol-Myers Squibb Company | D44: =_FV(Table_0[[#This Row],[Symbol]],"Industry") -> Pharmaceuticals | E44: 0.479898 | F44: 73.27 | G44: -0.06 | H44: (-0.08%) | I44: =_FV(Table_0[[#This Row],[Symbol]],"P/E",TRUE) -> 23.9016 | J44: =_FV(Table_0[[#This Row],[Symbol]],"Market cap",TRUE) -> 155783743200
A45: 42 | B45: Philip Morris International Inc. | D45: =_FV(Table_0[[#This Row],[Symbol]],"Industry") -> Food & Tobacco | E45: 0.479852 | F45: 100.08 | G45: -0.44 | H45: (-0.44%) | I45: =_FV(Table_0[[#This Row],[Symbol]],"P/E",TRUE) -> 17.9045 | J45: =_FV(Table_0[[#This Row],[Symbol]],"Market cap",TRUE) -> 155144216160
A46: 43 | B46: Texas Instruments Incorporated | D46: =_FV(Table_0[[#This Row],[Symbol]],"Industry") -> Semiconductors & Semiconductor Equipment | E46: 0.47311 | F46: 161.59 | G46: -7.14 | H46: (-4.23%) | I46: =_FV(Table_0[[#This Row],[Symbol]],"P/E",TRUE) -> 17.6705 | J46: =_FV(Table_0[[#This Row],[Symbol]],"Market cap",TRUE) -> 146631821710
A47: 44 | B47: Comcast Corporation Class A | D47: =_FV(Table_0[[#This Row],[Symbol]],"Industry") -> Telecommunications Services | E47: 0.466018 | F47: 34.46 | G47: -0.63 | H47: (-1.78%) | I47: =_FV(Table_0[[#This Row],[Symbol]],"P/E",TRUE) -> 30.503 | J47: =_FV(Table_0[[#This Row],[Symbol]],"Market cap",TRUE) -> 148984674140
A48: 45 | B48: Raytheon Technologies Corporation | D48: =_FV(Table_0[[#This Row],[Symbol]],"Industry") -> Aerospace & Defense | E48: 0.452019 | F48: 97.54 | G48: -2.22 | H48: (-2.23%) | I48: =_FV(Table_0[[#This Row],[Symbol]],"P/E",TRUE) -> 33.2675 | J48: =_FV(Table_0[[#This Row],[Symbol]],"Market cap",TRUE) -> 143389749940
A49: 46 | B49: NIKE Inc. Class B | D49: =_FV(Table_0[[#This Row],[Symbol]],"Industry") -> Textiles & Apparel | E49: 0.448951 | F49: 115.89 | G49: 0.11 | H49: (0.09%) | I49: =_FV(Table_0[[#This Row],[Symbol]],"P/E",TRUE) -> 32.6608 | J49: =_FV(Table_0[[#This Row],[Symbol]],"Market cap",TRUE) -> 181336096900
A50: 47 | B50: ConocoPhillips | D50: =_FV(Table_0[[#This Row],[Symbol]],"Industry") -> Oil & Gas | E50: 0.446183 | F50: 112.17 | G50: -4.11 | H50: (-3.53%) | I50: =_FV(Table_0[[#This Row],[Symbol]],"P/E",TRUE) -> 8.3469 | J50: =_FV(Table_0[[#This Row],[Symbol]],"Market cap",TRUE) -> 139746862650
A51: 48 | B51: Honeywell International Inc. | D51: =_FV(Table_0[[#This Row],[Symbol]],"Industry") -> Consumer Goods Conglomerates | E51: 0.444686 | F51: 210 | G51: -5.1 | H51: (-2.37%) | I51: =_FV(Table_0[[#This Row],[Symbol]],"P/E",TRUE) -> 27.5139 | J51: =_FV(Table_0[[#This Row],[Symbol]],"Market cap",TRUE) -> 141187662000
A52: 49 | B52: Amgen Inc. | D52: =_FV(Table_0[[#This Row],[Symbol]],"Industry") -> Pharmaceuticals | E52: 0.437092 | F52: 264.37 | G52: -1.89 | H52: (-0.71%) | I52: =_FV(Table_0[[#This Row],[Symbol]],"P/E",TRUE) -> 21.3323 | J52: =_FV(Table_0[[#This Row],[Symbol]],"Market cap",TRUE) -> 141062333104
A53: 50 | B53: Netflix Inc. | D53: =_FV(Table_0[[#This Row],[Symbol]],"Industry") -> Software & IT Services | E53: 0.408325 | F53: 291.41 | G53: -6.55 | H53: (-2.20%) | I53: =_FV(Table_0[[#This Row],[Symbol]],"P/E",TRUE) -> 28.0936 | J53: =_FV(Table_0[[#This Row],[Symbol]],"Market cap",TRUE) -> 129714575340
A54: 51 | B54: Salesforce Inc. | D54: =_FV(Table_0[[#This Row],[Symbol]],"Industry") -> Software & IT Services | E54: 0.401246 | F54: 126.83 | G54: -3.47 | H54: (-2.66%) | I54: =_FV(Table_0[[#This Row],[Symbol]],"P/E",TRUE) -> 469.6003 | J54: =_FV(Table_0[[#This Row],[Symbol]],"Market cap",TRUE) -> 126830000000
A55: 52 | B55: AT&T Inc. | D55: =_FV(Table_0[[#This Row],[Symbol]],"Industry") -> Telecommunications Services | E55: 0.398336 | F55: 17.97 | G55: -0.18 | H55: (-0.99%) | I55: =_FV(Table_0[[#This Row],[Symbol]],"P/E",TRUE) -> 6.6796 | J55: =_FV(Table_0[[#This Row],[Symbol]],"Market cap",TRUE) -> 129355000000
A56: 53 | B56: United Parcel Service Inc. Class B | D56: =_FV(Table_0[[#This Row],[Symbol]],"Industry") -> Freight & Logistics Services | E56: 0.396299 | F56: 173.55 | G56: -3.13 | H56: (-1.77%) | I56: =_FV(Table_0[[#This Row],[Symbol]],"P/E",TRUE) -> 13.83 | J56: =_FV(Table_0[[#This Row],[Symbol]],"Market cap",TRUE) -> 150106553610
A57: 54 | B57: International Business Machines Corporation | D57: =_FV(Table_0[[#This Row],[Symbol]],"Industry") -> Software & IT Services | E57: 0.395743 | F57: 139.38 | G57: -2.77 | H57: (-1.95%) | I57: =_FV(Table_0[[#This Row],[Symbol]],"P/E",TRUE) -> 87.7635 | J57: =_FV(Table_0[[#This Row],[Symbol]],"Market cap",TRUE) -> 126012603062
A58: 55 | B58: QUALCOMM Incorporated | D58: =_FV(Table_0[[#This Row],[Symbol]],"Industry") -> Semiconductors & Semiconductor Equipment | E58: 0.394901 | F58: 107.47 | G58: -7.12 | H58: (-6.21%) | I58: =_FV(Table_0[[#This Row],[Symbol]],"P/E",TRUE) -> 10.0309 | J58: =_FV(Table_0[[#This Row],[Symbol]],"Market cap",TRUE) -> 120473870000
A59: 56 | B59: Union Pacific Corporation | D59: =_FV(Table_0[[#This Row],[Symbol]],"Industry") -> Freight & Logistics Services | E59: 0.394586 | F59: 206.15 | G59: -2.27 | H59: (-1.09%) | I59: =_FV(Table_0[[#This Row],[Symbol]],"P/E",TRUE) -> 18.5844 | J59: =_FV(Table_0[[#This Row],[Symbol]],"Market cap",TRUE) -> 126713826284
A60: 57 | B60: Caterpillar Inc. | D60: =_FV(Table_0[[#This Row],[Symbol]],"Industry") -> Machinery, Equipment & Components | E60: 0.387385 | F60: 234.38 | G60: -7.35 | H60: (-3.04%) | I60: =_FV(Table_0[[#This Row],[Symbol]],"P/E",TRUE) -> 17.6558 | J60: =_FV(Table_0[[#This Row],[Symbol]],"Market cap",TRUE) -> 121973555172
A61: 58 | B61: Lowe's Companies Inc. | D61: =_FV(Table_0[[#This Row],[Symbol]],"Industry") -> Specialty Retailers | E61: 0.386923 | F61: 196.04 | G61: -6.39 | H61: (-3.16%) | I61: =_FV(Table_0[[#This Row],[Symbol]],"P/E",TRUE) -> 19.8493 | J61: =_FV(Table_0[[#This Row],[Symbol]],"Market cap",TRUE) -> 122409900000
A62: 59 | B62: Oracle Corporation | D62: =_FV(Table_0[[#This Row],[Symbol]],"Industry") -> Software & IT Services | E62: 0.385698 | F62: 79.8 | G62: -1.7 | H62: (-2.09%) | I62: =_FV(Table_0[[#This Row],[Symbol]],"P/E",TRUE) -> 25.4548 | J62: =_FV(Table_0[[#This Row],[Symbol]],"Market cap",TRUE) -> 215187951930
A63: 60 | B63: CVS Health Corporation | D63: =_FV(Table_0[[#This Row],[Symbol]],"Industry") -> Healthcare Providers & Services | E63: 0.380832 | F63: 93.12 | G63: -1 | H63: (-1.06%) | I63: =_FV(Table_0[[#This Row],[Symbol]],"P/E",TRUE) -> 39.9961 | J63: =_FV(Table_0[[#This Row],[Symbol]],"Market cap",TRUE) -> 122357658213
A64: 61 | B64: Charles Schwab Corp | D64: =_FV(Table_0[[#This Row],[Symbol]],"Industry") -> Investment Banking & Investment Services | E64: 0.38071 | F64: 80.13 | G64: -1.12 | H64: (-1.38%) | I64: =_FV(Table_0[[#This Row],[Symbol]],"P/E",TRUE) -> 24.6715 | J64: =_FV(Table_0[[#This Row],[Symbol]],"Market cap",TRUE) -> 151672600000
A65: 62 | B65: Elevance Health Inc. | D65: =_FV(Table_0[[#This Row],[Symbol]],"Industry") -> Healthcare Providers & Services | E65: 0.376298 | F65: 508.58 | G65: -2.26 | H65: (-0.44%) | I65: =_FV(Table_0[[#This Row],[Symbol]],"P/E",TRUE) -> 20.0435 | J65: =_FV(Table_0[[#This Row],[Symbol]],"Market cap",TRUE) -> 121462940808
A66: 63 | B66: Deere & Company | D66: =_FV(Table_0[[#This Row],[Symbol]],"Industry") -> Machinery, Equipment & Components | E66: 0.373532 | F66: 433.12 | G66: -8.52 | H66: (-1.93%) | I66: =_FV(Table_0[[#This Row],[Symbol]],"P/E",TRUE) -> 18.9337 | J66: =_FV(Table_0[[#This Row],[Symbol]],"Market cap",TRUE) -> 129148680392
A67: 64 | B67: Goldman Sachs Group Inc. | D67: =_FV(Table_0[[#This Row],[Symbol]],"Industry") -> Investment Banking & Investment Services | E67: 0.366626 | F67: 341.57 | G67: -8.59 | H67: (-2.45%) | I67: =_FV(Table_0[[#This Row],[Symbol]],"P/E",TRUE) -> 9.3277 | J67: =_FV(Table_0[[#This Row],[Symbol]],"Market cap",TRUE) -> 115738533587
A68: 65 | B68: Morgan Stanley | D68: =_FV(Table_0[[#This Row],[Symbol]],"Industry") -> Investment Banking & Investment Services | E68: 0.352652 | F68: 85.16 | G68: -1.71 | H68: (-1.97%) | I68: =_FV(Table_0[[#This Row],[Symbol]],"P/E",TRUE) -> 12.6099 | J68: =_FV(Table_0[[#This Row],[Symbol]],"Market cap",TRUE) -> 143895880260
A69: 66 | B69: Lockheed Martin Corporation | D69: =_FV(Table_0[[#This Row],[Symbol]],"Industry") -> Aerospace & Defense | E69: 0.350266 | F69: 476.15 | G69: -11.5 | H69: (-2.36%) | I69: =_FV(Table_0[[#This Row],[Symbol]],"P/E",TRUE) -> 22.3914 | J69: =_FV(Table_0[[#This Row],[Symbol]],"Market cap",TRUE) -> 124736741040
A70: 67 | B70: Starbucks Corporation | D70: =_FV(Table_0[[#This Row],[Symbol]],"Industry") -> Hotels & Entertainment Services | E70: 0.348784 | F70: 96.68 | G70: -1.99 | H70: (-2.02%) | I70: =_FV(Table_0[[#This Row],[Symbol]],"P/E",TRUE) -> 34.8263 | J70: =_FV(Table_0[[#This Row],[Symbol]],"Market cap",TRUE) -> 110969304000
A71: 68 | B71: S&P Global Inc. | D71: =_FV(Table_0[[#This Row],[Symbol]],"Industry") -> Professional & Commercial Services | E71: 0.34603 | F71: 330.04 | G71: -7.41 | H71: (-2.20%) | I71: =_FV(Table_0[[#This Row],[Symbol]],"P/E",TRUE) -> 28.2149 | J71: =_FV(Table_0[[#This Row],[Symbol]],"Market cap",TRUE) -> 107527032000
A72: 69 | B72: Intuit Inc. | D72: =_FV(Table_0[[#This Row],[Symbol]],"Industry") -> Financial Technology (Fintech) & Infrastructure | E72: 0.341412 | F72: 378.57 | G72: -14.77 | H72: (-3.75%) | I72: =_FV(Table_0[[#This Row],[Symbol]],"P/E",TRUE) -> 59.9211 | J72: =_FV(Table_0[[#This Row],[Symbol]],"Market cap",TRUE) -> 106348524051
A73: 70 | B73: Intel Corporation | D73: =_FV(Table_0[[#This Row],[Symbol]],"Industry") -> Semiconductors & Semiconductor Equipment | E73: 0.340975 | F73: 25.38 | G73: -1.45 | H73: (-5.40%) | I73: =_FV(Table_0[[#This Row],[Symbol]],"P/E",TRUE) -> 8.2815 | J73: =_FV(Table_0[[#This Row],[Symbol]],"Market cap",TRUE) -> 104722625000
A74: 71 | B74: Boeing Company | D74: =_FV(Table_0[[#This Row],[Symbol]],"Industry") -> Aerospace & Defense | E74: 0.338129 | F74: 186.7 | G74: -9.3 | H74: (-4.74%) | I74: =_FV(Table_0[[#This Row],[Symbol]],"P/E",TRUE) -> 0 | J74: =_FV(Table_0[[#This Row],[Symbol]],"Market cap",TRUE) -> 111292234015
A75: 72 | B75: Advanced Micro Devices Inc. | D75: =_FV(Table_0[[#This Row],[Symbol]],"Industry") -> Semiconductors & Semiconductor Equipment | E75: 0.335485 | F75: 62.48 | G75: -5.2 | H75: (-7.69%) | I75: =_FV(Table_0[[#This Row],[Symbol]],"P/E",TRUE) -> 40.5665 | J75: =_FV(Table_0[[#This Row],[Symbol]],"Market cap",TRUE) -> 109124300000
A76: 73 | B76: BlackRock Inc. | D76: =_FV(Table_0[[#This Row],[Symbol]],"Industry") -> Investment Banking & Investment Services | E76: 0.329803 | F76: 688.94 | G76: -24.01 | H76: (-3.37%) | I76: =_FV(Table_0[[#This Row],[Symbol]],"P/E",TRUE) -> 19.6414 | J76: =_FV(Table_0[[#This Row],[Symbol]],"Market cap",TRUE) -> 107080400000
A77: 74 | B77: Gilead Sciences Inc. | D77: =_FV(Table_0[[#This Row],[Symbol]],"Industry") -> Pharmaceuticals | E77: 0.32934 | F77: 84.92 | G77: -0.35 | H77: (-0.41%) | I77: =_FV(Table_0[[#This Row],[Symbol]],"P/E",TRUE) -> 32.2454 | J77: =_FV(Table_0[[#This Row],[Symbol]],"Market cap",TRUE) -> 106510400480
A78: 75 | B78: Prologis Inc. | D78: =_FV(Table_0[[#This Row],[Symbol]],"Industry") -> Residential & Commercial REIT | E78: 0.323875 | F78: 111.2 | G78: -2.74 | H78: (-2.40%) | I78: =_FV(Table_0[[#This Row],[Symbol]],"P/E",TRUE) -> 21.1049 | J78: =_FV(Table_0[[#This Row],[Symbol]],"Market cap",TRUE) -> 102609417176
A79: 76 | B79: Medtronic Plc | D79: =_FV(Table_0[[#This Row],[Symbol]],"Industry") -> Healthcare Equipment & Supplies | E79: 0.315816 | F79: 76.25 | G79: -0.91 | H79: (-1.18%) | I79: =_FV(Table_0[[#This Row],[Symbol]],"P/E",TRUE) -> 23.9596 | J79: =_FV(Table_0[[#This Row],[Symbol]],"Market cap",TRUE) -> 101412923200
A80: 77 | B80: Automatic Data Processing Inc. | D80: =_FV(Table_0[[#This Row],[Symbol]],"Industry") -> Software & IT Services | E80: 0.314931 | F80: 237.46 | G80: -9.58 | H80: (-3.88%) | I80: =_FV(Table_0[[#This Row],[Symbol]],"P/E",TRUE) -> 34.2223 | J80: =_FV(Table_0[[#This Row],[Symbol]],"Market cap",TRUE) -> 102479100000
A81: 78 | B81: Cigna Corporation | D81: =_FV(Table_0[[#This Row],[Symbol]],"Industry") -> Healthcare Providers & Services | E81: 0.313671 | F81: 331.84 | G81: -1.32 | H81: (-0.40%) | I81: =_FV(Table_0[[#This Row],[Symbol]],"P/E",TRUE) -> 15.9163 | J81: =_FV(Table_0[[#This Row],[Symbol]],"Market cap",TRUE) -> 101456429759
A82: 79 | B82: American Tower Corporation | D82: =_FV(Table_0[[#This Row],[Symbol]],"Industry") -> Residential & Commercial REIT | E82: 0.301956 | F82: 207.15 | G82: -3.45 | H82: (-1.64%) | I82: =_FV(Table_0[[#This Row],[Symbol]],"P/E",TRUE) -> 33.4262 | J82: =_FV(Table_0[[#This Row],[Symbol]],"Market cap",TRUE) -> 96450200040
A83: 80 | B83: Intuitive Surgical Inc. | D83: =_FV(Table_0[[#This Row],[Symbol]],"Industry") -> Healthcare Equipment & Supplies | E83: 0.291359 | F83: 260.5 | G83: -5.66 | H83: (-2.13%) | I83: =_FV(Table_0[[#This Row],[Symbol]],"P/E",TRUE) -> 70.4852 | J83: =_FV(Table_0[[#This Row],[Symbol]],"Market cap",TRUE) -> 92056688300
A84: 81 | B84: TJX Companies Inc | D84: =_FV(Table_0[[#This Row],[Symbol]],"Industry") -> Diversified Retail | E84: 0.283256 | F84: 77.56 | G84: -1.28 | H84: (-1.62%) | I84: =_FV(Table_0[[#This Row],[Symbol]],"P/E",TRUE) -> 27.4892 | J84: =_FV(Table_0[[#This Row],[Symbol]],"Market cap",TRUE) -> 89620890240
A85: 82 | B85: Mondelez International Inc. Class A | D85: =_FV(Table_0[[#This Row],[Symbol]],"Industry") -> Food & Tobacco | E85: 0.281341 | F85: 66.26 | G85: -0.64 | H85: (-0.95%) | I85: =_FV(Table_0[[#This Row],[Symbol]],"P/E",TRUE) -> 29.7548 | J85: =_FV(Table_0[[#This Row],[Symbol]],"Market cap",TRUE) -> 91346220000
A86: 83 | B86: Applied Materials Inc. | D86: =_FV(Table_0[[#This Row],[Symbol]],"Industry") -> Semiconductors & Semiconductor Equipment | E86: 0.280555 | F86: 96.19 | G86: -9.72 | H86: (-9.17%) | I86: =_FV(Table_0[[#This Row],[Symbol]],"P/E",TRUE) -> 14.2386 | J86: =_FV(Table_0[[#This Row],[Symbol]],"Market cap",TRUE) -> 81193577044
A87: 84 | B87: Chubb Limited | D87: =_FV(Table_0[[#This Row],[Symbol]],"Industry") -> Insurance | E87: 0.280365 | F87: 216.29 | G87: -2.47 | H87: (-1.13%) | I87: =_FV(Table_0[[#This Row],[Symbol]],"P/E",TRUE) -> 15.2662 | J87: =_FV(Table_0[[#This Row],[Symbol]],"Market cap",TRUE) -> 89771229387
A88: 85 | B88: General Electric Company | D88: =_FV(Table_0[[#This Row],[Symbol]],"Industry") -> Consumer Goods Conglomerates | E88: 0.27835 | F88: 80.66 | G88: -2.32 | H88: (-2.80%) | I88: =_FV(Table_0[[#This Row],[Symbol]],"P/E",TRUE) -> 0 | J88: =_FV(Table_0[[#This Row],[Symbol]],"Market cap",TRUE) -> 88134600880
A89: 86 | B89: American Express Company | D89: =_FV(Table_0[[#This Row],[Symbol]],"Industry") -> Banking Services | E89: 0.270762 | F89: 143.45 | G89: -3.65 | H89: (-2.48%) | I89: =_FV(Table_0[[#This Row],[Symbol]],"P/E",TRUE) -> 14.7794 | J89: =_FV(Table_0[[#This Row],[Symbol]],"Market cap",TRUE) -> 107190530814
A90: 87 | B90: Citigroup Inc. | D90: =_FV(Table_0[[#This Row],[Symbol]],"Industry") -> Investment Banking & Investment Services | E90: 0.267262 | F90: 43.11 | G90: -1.7 | H90: (-3.80%) | I90: =_FV(Table_0[[#This Row],[Symbol]],"P/E",TRUE) -> 6.0406 | J90: =_FV(Table_0[[#This Row],[Symbol]],"Market cap",TRUE) -> 83491341215
A91: 88 | B91: Analog Devices Inc. | D91: =_FV(Table_0[[#This Row],[Symbol]],"Industry") -> Semiconductors & Semiconductor Equipment | E91: 0.267094 | F91: 161.13 | G91: -6.28 | H91: (-3.75%) | I91: =_FV(Table_0[[#This Row],[Symbol]],"P/E",TRUE) -> 31.762 | J91: =_FV(Table_0[[#This Row],[Symbol]],"Market cap",TRUE) -> 82062848367
A92: 89 | B92: T-Mobile US Inc. | D92: =_FV(Table_0[[#This Row],[Symbol]],"Industry") -> Telecommunications Services | E92: 0.261332 | F92: 138.58 | G92: -2.89 | H92: (-2.04%) | I92: =_FV(Table_0[[#This Row],[Symbol]],"P/E",TRUE) -> 115.8384 | J92: =_FV(Table_0[[#This Row],[Symbol]],"Market cap",TRUE) -> 172414861320
A93: 90 | B93: Marsh & McLennan Companies Inc. | D93: =_FV(Table_0[[#This Row],[Symbol]],"Industry") -> Insurance | E93: 0.256599 | F93: 164.64 | G93: -2.95 | H93: (-1.76%) | I93: =_FV(Table_0[[#This Row],[Symbol]],"P/E",TRUE) -> 25.1411 | J93: =_FV(Table_0[[#This Row],[Symbol]],"Market cap",TRUE) -> 81663004080
A94: 91 | B94: Altria Group Inc | D94: =_FV(Table_0[[#This Row],[Symbol]],"Industry") -> Food & Tobacco | E94: 0.251947 | F94: 45.45 | G94: -0.14 | H94: (-0.31%) | I94: =_FV(Table_0[[#This Row],[Symbol]],"P/E",TRUE) -> 17.7119 | J94: =_FV(Table_0[[#This Row],[Symbol]],"Market cap",TRUE) -> 81454262850
A95: 92 | B95: Stryker Corporation | D95: =_FV(Table_0[[#This Row],[Symbol]],"Industry") -> Healthcare Equipment & Supplies | E95: 0.24955 | F95: 239.29 | G95: -2.25 | H95: (-0.93%) | I95: =_FV(Table_0[[#This Row],[Symbol]],"P/E",TRUE) -> 37.569 | J95: =_FV(Table_0[[#This Row],[Symbol]],"Market cap",TRUE) -> 90547336000
A96: 93 | B96: PayPal Holdings Inc. | D96: =_FV(Table_0[[#This Row],[Symbol]],"Industry") -> Software & IT Services | E96: 0.242969 | F96: 66.83 | G96: -2.38 | H96: (-3.44%) | I96: =_FV(Table_0[[#This Row],[Symbol]],"P/E",TRUE) -> 35.1956 | J96: =_FV(Table_0[[#This Row],[Symbol]],"Market cap",TRUE) -> 76188071240
A97: 94 | B97: ServiceNow Inc. | D97: =_FV(Table_0[[#This Row],[Symbol]],"Industry") -> Software & IT Services | E97: 0.242967 | F97: 377 | G97: -14.91 | H97: (-3.80%) | I97: =_FV(Table_0[[#This Row],[Symbol]],"P/E",TRUE) -> 396.1368 | J97: =_FV(Table_0[[#This Row],[Symbol]],"Market cap",TRUE) -> 76187188600
A98: 95 | B98: Regeneron Pharmaceuticals Inc. | D98: =_FV(Table_0[[#This Row],[Symbol]],"Industry") -> Biotechnology & Medical Research | E98: 0.242059 | F98: 730 | G98: -6.19 | H98: (-0.84%) | I98: =_FV(Table_0[[#This Row],[Symbol]],"P/E",TRUE) -> 15.5299 | J98: =_FV(Table_0[[#This Row],[Symbol]],"Market cap",TRUE) -> 80172520000
A99: 96 | B99: Duke Energy Corporation | D99: =_FV(Table_0[[#This Row],[Symbol]],"Industry") -> Electrical Utilities & IPPs | E99: 0.241687 | F99: 100.62 | G99: -1.3 | H99: (-1.28%) | I99: =_FV(Table_0[[#This Row],[Symbol]],"P/E",TRUE) -> 20.5951 | J99: =_FV(Table_0[[#This Row],[Symbol]],"Market cap",TRUE) -> 77483708874
A100: 97 | B100: Northrop Grumman Corp. | D100: =_FV(Table_0[[#This Row],[Symbol]],"Industry") -> Aerospace & Defense | E100: 0.240189 | F100: 530.3 | G100: -8.49 | H100: (-1.58%) | I100: =_FV(Table_0[[#This Row],[Symbol]],"P/E",TRUE) -> 15.3133 | J100: =_FV(Table_0[[#This Row],[Symbol]],"Market cap",TRUE) -> 81612713611
A101: 98 | B101: Southern Company | D101: =_FV(Table_0[[#This Row],[Symbol]],"Industry") -> Electrical Utilities & IPPs | E101: 0.23712 | F101: 69.97 | G101: -0.76 | H101: (-1.07%) | I101: =_FV(Table_0[[#This Row],[Symbol]],"P/E",TRUE) -> 22.4617 | J101: =_FV(Table_0[[#This Row],[Symbol]],"Market cap",TRUE) -> 76174449810
A102: 99 | B102: Booking Holdings Inc. | D102: =_FV(Table_0[[#This Row],[Symbol]],"Industry") -> Hotels & Entertainment Services | E102: 0.23541 | F102: 1912.37 | G102: -58.53 | H102: (-2.97%) | I102: =_FV(Table_0[[#This Row],[Symbol]],"P/E",TRUE) -> 32.3619 | J102: =_FV(Table_0[[#This Row],[Symbol]],"Market cap",TRUE) -> 74179665754
A103: 100 | B103: EOG Resources Inc. | D103: =_FV(Table_0[[#This Row],[Symbol]],"Industry") -> Oil & Gas | E103: 0.235165 | F103: 125.36 | G103: -4.65 | H103: (-3.58%) | I103: =_FV(Table_0[[#This Row],[Symbol]],"P/E",TRUE) -> 10.2108 | J103: =_FV(Table_0[[#This Row],[Symbol]],"Market cap",TRUE) -> 73614589087
A104: 101 | B104: Schlumberger NV | D104: =_FV(Table_0[[#This Row],[Symbol]],"Industry") -> Oil & Gas Related Equipment and Services | E104: 0.232784 | F104: 51.21 | G104: -2.1 | H104: (-3.94%) | I104: =_FV(Table_0[[#This Row],[Symbol]],"P/E",TRUE) -> 25.7467 | J104: =_FV(Table_0[[#This Row],[Symbol]],"Market cap",TRUE) -> 72601600000
A105: 102 | B105: Progressive Corporation | D105: =_FV(Table_0[[#This Row],[Symbol]],"Industry") -> Insurance | E105: 0.232632 | F105: 127.14 | G105: -1.98 | H105: (-1.53%) | I105: =_FV(Table_0[[#This Row],[Symbol]],"P/E",TRUE) -> 91.4137 | J105: =_FV(Table_0[[#This Row],[Symbol]],"Market cap",TRUE) -> 74347942500
A106: 103 | B106: Vertex Pharmaceuticals Incorporated | D106: =_FV(Table_0[[#This Row],[Symbol]],"Industry") -> Biotechnology & Medical Research | E106: 0.229671 | F106: 292.47 | G106: 1.92 | H106: (0.66%) | I106: =_FV(Table_0[[#This Row],[Symbol]],"P/E",TRUE) -> 22.931 | J106: =_FV(Table_0[[#This Row],[Symbol]],"Market cap",TRUE) -> 75074533758
A107: 104 | B107: Becton Dickinson and Company | D107: =_FV(Table_0[[#This Row],[Symbol]],"Industry") -> Healthcare Equipment & Supplies | E107: 0.221743 | F107: 251.44 | G107: -1.93 | H107: (-0.76%) | I107: =_FV(Table_0[[#This Row],[Symbol]],"P/E",TRUE) -> 42.309 | J107: =_FV(Table_0[[#This Row],[Symbol]],"Market cap",TRUE) -> 71250594273
A108: 105 | B108: Air Products and Chemicals Inc. | D108: =_FV(Table_0[[#This Row],[Symbol]],"Industry") -> Chemicals | E108: 0.214799 | F108: 308.16 | G108: -6.33 | H108: (-2.01%) | I108: =_FV(Table_0[[#This Row],[Symbol]],"P/E",TRUE) -> 31.1932 | J108: =_FV(Table_0[[#This Row],[Symbol]],"Market cap",TRUE) -> 68407729632
A109: 106 | B109: Moderna Inc. | D109: =_FV(Table_0[[#This Row],[Symbol]],"Industry") -> Biotechnology & Medical Research | E109: 0.2137 | F109: 204.9 | G109: -5.14 | H109: (-2.45%) | I109: =_FV(Table_0[[#This Row],[Symbol]],"P/E",TRUE) -> 7.5952 | J109: =_FV(Table_0[[#This Row],[Symbol]],"Market cap",TRUE) -> 78657115570
A110: 107 | B110: 3M Company | D110: =_FV(Table_0[[#This Row],[Symbol]],"Industry") -> Consumer Goods Conglomerates | E110: 0.210144 | F110: 119.97 | G110: -3.49 | H110: (-2.83%) | I110: =_FV(Table_0[[#This Row],[Symbol]],"P/E",TRUE) -> 10.7595 | J110: =_FV(Table_0[[#This Row],[Symbol]],"Market cap",TRUE) -> 66312565713
A111: 108 | B111: Zoetis Inc. Class A | D111: =_FV(Table_0[[#This Row],[Symbol]],"Industry") -> Pharmaceuticals | E111: 0.207969 | F111: 142.97 | G111: -1.95 | H111: (-1.35%) | I111: =_FV(Table_0[[#This Row],[Symbol]],"P/E",TRUE) -> 33.1231 | J111: =_FV(Table_0[[#This Row],[Symbol]],"Market cap",TRUE) -> 66634313840
A112: 109 | B112: Boston Scientific Corporation | D112: =_FV(Table_0[[#This Row],[Symbol]],"Industry") -> Healthcare Equipment & Supplies | E112: 0.203243 | F112: 45.54 | G112: -0.55 | H112: (-1.18%) | I112: =_FV(Table_0[[#This Row],[Symbol]],"P/E",TRUE) -> 111.0201 | J112: =_FV(Table_0[[#This Row],[Symbol]],"Market cap",TRUE) -> 65220281384
A113: 110 | B113: Colgate-Palmolive Company | D113: =_FV(Table_0[[#This Row],[Symbol]],"Industry") -> Personal & Household Products & Services | E113: 0.202529 | F113: 78.59 | G113: -0.4 | H113: (-0.51%) | I113: =_FV(Table_0[[#This Row],[Symbol]],"P/E",TRUE) -> 34.4504 | J113: =_FV(Table_0[[#This Row],[Symbol]],"Market cap",TRUE) -> 65639483978
A114: 111 | B114: Target Corporation | D114: =_FV(Table_0[[#This Row],[Symbol]],"Industry") -> Diversified Retail | E114: 0.202494 | F114: 139.9 | G114: -2.4 | H114: (-1.69%) | I114: =_FV(Table_0[[#This Row],[Symbol]],"P/E",TRUE) -> 19.4796 | J114: =_FV(Table_0[[#This Row],[Symbol]],"Market cap",TRUE) -> 64403827331
A115: 112 | B115: CSX Corporation | D115: =_FV(Table_0[[#This Row],[Symbol]],"Industry") -> Freight & Logistics Services | E115: 0.202123 | F115: 30.64 | G115: -0.58 | H115: (-1.86%) | I115: =_FV(Table_0[[#This Row],[Symbol]],"P/E",TRUE) -> 16.6031 | J115: =_FV(Table_0[[#This Row],[Symbol]],"Market cap",TRUE) -> 64407299715
A116: 113 | B116: Fiserv Inc. | D116: =_FV(Table_0[[#This Row],[Symbol]],"Industry") -> Professional & Commercial Services | E116: 0.19851 | F116: 98.54 | G116: -2.6 | H116: (-2.57%) | I116: =_FV(Table_0[[#This Row],[Symbol]],"P/E",TRUE) -> 31.7652 | J116: =_FV(Table_0[[#This Row],[Symbol]],"Market cap",TRUE) -> 62575668974
A117: 114 | B117: Humana Inc. | D117: =_FV(Table_0[[#This Row],[Symbol]],"Industry") -> Healthcare Providers & Services | E117: 0.198088 | F117: 507.17 | G117: -0.94 | H117: (-0.18%) | I117: =_FV(Table_0[[#This Row],[Symbol]],"P/E",TRUE) -> 23.0471 | J117: =_FV(Table_0[[#This Row],[Symbol]],"Market cap",TRUE) -> 64207874151
A118: 115 | B118: Eaton Corp. Plc | D118: =_FV(Table_0[[#This Row],[Symbol]],"Industry") -> Machinery, Equipment & Components | E118: 0.193268 | F118: 154.25 | G118: -3.87 | H118: (-2.45%) | I118: =_FV(Table_0[[#This Row],[Symbol]],"P/E",TRUE) -> 27.6784 | J118: =_FV(Table_0[[#This Row],[Symbol]],"Market cap",TRUE) -> 61345225000
A119: 116 | B119: Aon Plc Class A | D119: =_FV(Table_0[[#This Row],[Symbol]],"Industry") -> Insurance | E119: 0.193026 | F119: 298.46 | G119: -4.57 | H119: (-1.51%) | I119: =_FV(Table_0[[#This Row],[Symbol]],"P/E",TRUE) -> 23.5278 | J119: =_FV(Table_0[[#This Row],[Symbol]],"Market cap",TRUE) -> 61749727708
A120: 117 | B120: Illinois Tool Works Inc. | D120: =_FV(Table_0[[#This Row],[Symbol]],"Industry") -> Consumer Goods Conglomerates | E120: 0.192176 | F120: 216.87 | G120: -5.44 | H120: (-2.45%) | I120: =_FV(Table_0[[#This Row],[Symbol]],"P/E",TRUE) -> 25.3754 | J120: =_FV(Table_0[[#This Row],[Symbol]],"Market cap",TRUE) -> 66619637442
A121: 118 | B121: CME Group Inc. Class A | D121: =_FV(Table_0[[#This Row],[Symbol]],"Industry") -> Investment Banking & Investment Services | E121: 0.191494 | F121: 170.51 | G121: -2.36 | H121: (-1.37%) | I121: =_FV(Table_0[[#This Row],[Symbol]],"P/E",TRUE) -> 23.5955 | J121: =_FV(Table_0[[#This Row],[Symbol]],"Market cap",TRUE) -> 61336709750
A122: 119 | B122: PNC Financial Services Group Inc. | D122: =_FV(Table_0[[#This Row],[Symbol]],"Industry") -> Banking Services | E122: 0.191141 | F122: 151.21 | G122: -2.69 | H122: (-1.75%) | I122: =_FV(Table_0[[#This Row],[Symbol]],"P/E",TRUE) -> 12.054 | J122: =_FV(Table_0[[#This Row],[Symbol]],"Market cap",TRUE) -> 60973766420
A123: 120 | B123: Equinix Inc. | D123: =_FV(Table_0[[#This Row],[Symbol]],"Industry") -> Residential & Commercial REIT | E123: 0.189761 | F123: 646.51 | G123: -19.44 | H123: (-2.92%) | I123: =_FV(Table_0[[#This Row],[Symbol]],"P/E",TRUE) -> 87.1558 | J123: =_FV(Table_0[[#This Row],[Symbol]],"Market cap",TRUE) -> 59826819961
A124: 121 | B124: Lam Research Corporation | D124: =_FV(Table_0[[#This Row],[Symbol]],"Industry") -> Semiconductors & Semiconductor Equipment | E124: 0.188235 | F124: 397.48 | G124: -50.39 | H124: (-11.25%) | I124: =_FV(Table_0[[#This Row],[Symbol]],"P/E",TRUE) -> 12.8438 | J124: =_FV(Table_0[[#This Row],[Symbol]],"Market cap",TRUE) -> 54209407957
A125: 122 | B125: Waste Management Inc. | D125: =_FV(Table_0[[#This Row],[Symbol]],"Industry") -> Professional & Commercial Services | E125: 0.183842 | F125: 157.21 | G125: -2.07 | H125: (-1.30%) | I125: =_FV(Table_0[[#This Row],[Symbol]],"P/E",TRUE) -> 29.5909 | J125: =_FV(Table_0[[#This Row],[Symbol]],"Market cap",TRUE) -> 64529052505
A126: 123 | B126: Crown Castle Inc. | D126: =_FV(Table_0[[#This Row],[Symbol]],"Industry") -> Residential & Commercial REIT | E126: 0.179359 | F126: 133.52 | G126: -0.98 | H126: (-0.73%) | I126: =_FV(Table_0[[#This Row],[Symbol]],"P/E",TRUE) -> 36.1666 | J126: =_FV(Table_0[[#This Row],[Symbol]],"Market cap",TRUE) -> 57842221360
A127: 124 | B127: U.S. Bancorp | D127: =_FV(Table_0[[#This Row],[Symbol]],"Industry") -> Banking Services | E127: 0.177216 | F127: 42.43 | G127: -0.28 | H127: (-0.66%) | I127: =_FV(Table_0[[#This Row],[Symbol]],"P/E",TRUE) -> 10.1771 | J127: =_FV(Table_0[[#This Row],[Symbol]],"Market cap",TRUE) -> 64928168060
A128: 125 | B128: Norfolk Southern Corporation | D128: =_FV(Table_0[[#This Row],[Symbol]],"Industry") -> Freight & Logistics Services | E128: 0.175877 | F128: 243.49 | G128: -3.21 | H128: (-1.30%) | I128: =_FV(Table_0[[#This Row],[Symbol]],"P/E",TRUE) -> 18.1548 | J128: =_FV(Table_0[[#This Row],[Symbol]],"Market cap",TRUE) -> 56371392558
A129: 126 | B129: Emerson Electric Co. | D129: =_FV(Table_0[[#This Row],[Symbol]],"Industry") -> Machinery, Equipment & Components | E129: 0.175852 | F129: 94.16 | G129: -2.62 | H129: (-2.71%) | I129: =_FV(Table_0[[#This Row],[Symbol]],"P/E",TRUE) -> 17.8643 | J129: =_FV(Table_0[[#This Row],[Symbol]],"Market cap",TRUE) -> 55692138000
A130: 127 | B130: Intercontinental Exchange Inc. | D130: =_FV(Table_0[[#This Row],[Symbol]],"Industry") -> Investment Banking & Investment Services | E130: 0.175567 | F130: 101.13 | G130: -1.43 | H130: (-1.39%) | I130: =_FV(Table_0[[#This Row],[Symbol]],"P/E",TRUE) -> 22.7065 | J130: =_FV(Table_0[[#This Row],[Symbol]],"Market cap",TRUE) -> 56483530550
A131: 128 | B131: Sherwin-Williams Company | D131: =_FV(Table_0[[#This Row],[Symbol]],"Industry") -> Chemicals | E131: 0.175323 | F131: 239.56 | G131: -2.65 | H131: (-1.09%) | I131: =_FV(Table_0[[#This Row],[Symbol]],"P/E",TRUE) -> 32.7677 | J131: =_FV(Table_0[[#This Row],[Symbol]],"Market cap",TRUE) -> 62080392904
A132: 129 | B132: Estee Lauder Companies Inc. Class A | D132: =_FV(Table_0[[#This Row],[Symbol]],"Industry") -> Personal & Household Products & Services | E132: 0.172942 | F132: 239.65 | G132: -4.22 | H132: (-1.73%) | I132: =_FV(Table_0[[#This Row],[Symbol]],"P/E",TRUE) -> 40.6389 | J132: =_FV(Table_0[[#This Row],[Symbol]],"Market cap",TRUE) -> 85510067695
A133: 130 | B133: KLA Corporation | D133: =_FV(Table_0[[#This Row],[Symbol]],"Industry") -> Semiconductors & Semiconductor Equipment | E133: 0.172658 | F133: 367.95 | G133: -28.84 | H133: (-7.27%) | I133: =_FV(Table_0[[#This Row],[Symbol]],"P/E",TRUE) -> 17.9235 | J133: =_FV(Table_0[[#This Row],[Symbol]],"Market cap",TRUE) -> 52144539893
A134: 131 | B134: General Dynamics Corporation | D134: =_FV(Table_0[[#This Row],[Symbol]],"Industry") -> Aerospace & Defense | E134: 0.172491 | F134: 244.07 | G134: -5.9 | H134: (-2.36%) | I134: =_FV(Table_0[[#This Row],[Symbol]],"P/E",TRUE) -> 20.8167 | J134: =_FV(Table_0[[#This Row],[Symbol]],"Market cap",TRUE) -> 67018783645
A135: 132 | B135: Micron Technology Inc. | D135: =_FV(Table_0[[#This Row],[Symbol]],"Industry") -> Semiconductors & Semiconductor Equipment | E135: 0.171375 | F135: 48.55 | G135: -2.64 | H135: (-5.16%) | I135: =_FV(Table_0[[#This Row],[Symbol]],"P/E",TRUE) -> 6.6191 | J135: =_FV(Table_0[[#This Row],[Symbol]],"Market cap",TRUE) -> 52973764080
A136: 133 | B136: Truist Financial Corporation | D136: =_FV(Table_0[[#This Row],[Symbol]],"Industry") -> Banking Services | E136: 0.170576 | F136: 41.29 | G136: -0.46 | H136: (-1.10%) | I136: =_FV(Table_0[[#This Row],[Symbol]],"P/E",TRUE) -> 9.5747 | J136: =_FV(Table_0[[#This Row],[Symbol]],"Market cap",TRUE) -> 54782168140
A137: 134 | B137: Dollar General Corporation | D137: =_FV(Table_0[[#This Row],[Symbol]],"Industry") -> Diversified Retail | E137: 0.170128 | F137: 243.13 | G137: -1.42 | H137: (-0.58%) | I137: =_FV(Table_0[[#This Row],[Symbol]],"P/E",TRUE) -> 23.768 | J137: =_FV(Table_0[[#This Row],[Symbol]],"Market cap",TRUE) -> 54356623250
A138: 135 | B138: Freeport-McMoRan Inc. | D138: =_FV(Table_0[[#This Row],[Symbol]],"Industry") -> Metals & Mining | E138: 0.168734 | F138: 37.12 | G138: -1.34 | H138: (-3.47%) | I138: =_FV(Table_0[[#This Row],[Symbol]],"P/E",TRUE) -> 14.5623 | J138: =_FV(Table_0[[#This Row],[Symbol]],"Market cap",TRUE) -> 53035178334
A139: 136 | B139: McKesson Corporation | D139: =_FV(Table_0[[#This Row],[Symbol]],"Industry") -> Pharmaceuticals | E139: 0.167829 | F139: 382.93 | G139: 2.47 | H139: (0.65%) | I139: =_FV(Table_0[[#This Row],[Symbol]],"P/E",TRUE) -> 26.8782 | J139: =_FV(Table_0[[#This Row],[Symbol]],"Market cap",TRUE) -> 54376060000
A140: 137 | B140: Activision Blizzard Inc. | D140: =_FV(Table_0[[#This Row],[Symbol]],"Industry") -> Software & IT Services | E140: 0.165797 | F140: 75.59 | G140: -0.3 | H140: (-0.40%) | I140: =_FV(Table_0[[#This Row],[Symbol]],"P/E",TRUE) -> 35.6527 | J140: =_FV(Table_0[[#This Row],[Symbol]],"Market cap",TRUE) -> 59158646427
A141: 138 | B141: Marathon Petroleum Corporation | D141: =_FV(Table_0[[#This Row],[Symbol]],"Industry") -> Oil & Gas | E141: 0.165317 | F141: 111.04 | G141: -3.51 | H141: (-3.06%) | I141: =_FV(Table_0[[#This Row],[Symbol]],"P/E",TRUE) -> 5.0278 | J141: =_FV(Table_0[[#This Row],[Symbol]],"Market cap",TRUE) -> 52040095232
A142: 139 | B142: Pioneer Natural Resources Company | D142: =_FV(Table_0[[#This Row],[Symbol]],"Industry") -> Oil & Gas | E142: 0.165177 | F142: 220.11 | G142: -5.46 | H142: (-2.42%) | I142: =_FV(Table_0[[#This Row],[Symbol]],"P/E",TRUE) -> 8.0476 | J142: =_FV(Table_0[[#This Row],[Symbol]],"Market cap",TRUE) -> 52296661863
A143: 140 | B143: O'Reilly Automotive Inc. | D143: =_FV(Table_0[[#This Row],[Symbol]],"Industry") -> Specialty Retailers | E143: 0.160636 | F143: 827.68 | G143: -5.94 | H143: (-0.71%) | I143: =_FV(Table_0[[#This Row],[Symbol]],"P/E",TRUE) -> 25.4457 | J143: =_FV(Table_0[[#This Row],[Symbol]],"Market cap",TRUE) -> 51792829188
A144: 141 | B144: HCA Healthcare Inc | D144: =_FV(Table_0[[#This Row],[Symbol]],"Industry") -> Healthcare Providers & Services | E144: 0.160481 | F144: 237.34 | G144: -5.56 | H144: (-2.29%) | I144: =_FV(Table_0[[#This Row],[Symbol]],"P/E",TRUE) -> 13.7162 | J144: =_FV(Table_0[[#This Row],[Symbol]],"Market cap",TRUE) -> 67090086493
A145: 142 | B145: Archer-Daniels-Midland Company | D145: =_FV(Table_0[[#This Row],[Symbol]],"Industry") -> Food & Tobacco | E145: 0.15947 | F145: 92.85 | G145: -1.42 | H145: (-1.51%) | I145: =_FV(Table_0[[#This Row],[Symbol]],"P/E",TRUE) -> 13.0125 | J145: =_FV(Table_0[[#This Row],[Symbol]],"Market cap",TRUE) -> 50994693786
A146: 143 | B146: General Motors Company | D146: =_FV(Table_0[[#This Row],[Symbol]],"Industry") -> Automobiles & Auto Parts | E146: 0.157058 | F146: 33.58 | G146: -2.32 | H146: (-6.46%) | I146: =_FV(Table_0[[#This Row],[Symbol]],"P/E",TRUE) -> 6.0933 | J146: =_FV(Table_0[[#This Row],[Symbol]],"Market cap",TRUE) -> 47707005260
A147: 144 | B147: General Mills Inc. | D147: =_FV(Table_0[[#This Row],[Symbol]],"Industry") -> Food & Tobacco | E147: 0.156076 | F147: 84.93 | G147: -0.43 | H147: (-0.50%) | I147: =_FV(Table_0[[#This Row],[Symbol]],"P/E",TRUE) -> 17.832 | J147: =_FV(Table_0[[#This Row],[Symbol]],"Market cap",TRUE) -> 50075636751
A148: 145 | B148: Synopsys Inc. | D148: =_FV(Table_0[[#This Row],[Symbol]],"Industry") -> Software & IT Services | E148: 0.154652 | F148: 318.58 | G148: -11.64 | H148: (-3.52%) | I148: =_FV(Table_0[[#This Row],[Symbol]],"P/E",TRUE) -> 52.4737 | J148: =_FV(Table_0[[#This Row],[Symbol]],"Market cap",TRUE) -> 48557071576
A149: 146 | B149: Dominion Energy Inc | D149: =_FV(Table_0[[#This Row],[Symbol]],"Industry") -> Electrical Utilities & IPPs | E149: 0.153418 | F149: 59.63 | G149: -0.42 | H149: (-0.70%) | I149: =_FV(Table_0[[#This Row],[Symbol]],"P/E",TRUE) -> 28.3958 | J149: =_FV(Table_0[[#This Row],[Symbol]],"Market cap",TRUE) -> 49688200176
A150: 147 | B150: Phillips 66 | D150: =_FV(Table_0[[#This Row],[Symbol]],"Industry") -> Oil & Gas | E150: 0.15212 | F150: 100.36 | G150: -2.99 | H150: (-2.89%) | I150: =_FV(Table_0[[#This Row],[Symbol]],"P/E",TRUE) -> 4.7298 | J150: =_FV(Table_0[[#This Row],[Symbol]],"Market cap",TRUE) -> 47419188626
A151: 148 | B151: Sempra Energy | D151: =_FV(Table_0[[#This Row],[Symbol]],"Industry") -> Multiline Utilities | E151: 0.151719 | F151: 154.42 | G151: -2.32 | H151: (-1.48%) | I151: =_FV(Table_0[[#This Row],[Symbol]],"P/E",TRUE) -> 22.0001 | J151: =_FV(Table_0[[#This Row],[Symbol]],"Market cap",TRUE) -> 48567653634
A152: 149 | B152: American Electric Power Company Inc. | D152: =_FV(Table_0[[#This Row],[Symbol]],"Industry") -> Electrical Utilities & IPPs | E152: 0.150866 | F152: 93.43 | G152: -1.91 | H152: (-2.00%) | I152: =_FV(Table_0[[#This Row],[Symbol]],"P/E",TRUE) -> 19.7711 | J152: =_FV(Table_0[[#This Row],[Symbol]],"Market cap",TRUE) -> 48010285491
A153: 150 | B153: MetLife Inc. | D153: =_FV(Table_0[[#This Row],[Symbol]],"Industry") -> Insurance | E153: 0.149757 | F153: 71.23 | G153: -1.61 | H153: (-2.21%) | I153: =_FV(Table_0[[#This Row],[Symbol]],"P/E",TRUE) -> 27.3675 | J153: =_FV(Table_0[[#This Row],[Symbol]],"Market cap",TRUE) -> 55895345687
A154: 151 | B154: Valero Energy Corporation | D154: =_FV(Table_0[[#This Row],[Symbol]],"Industry") -> Oil & Gas | E154: 0.145641 | F154: 119.74 | G154: -2.95 | H154: (-2.40%) | I154: =_FV(Table_0[[#This Row],[Symbol]],"P/E",TRUE) -> 5.2306 | J154: =_FV(Table_0[[#This Row],[Symbol]],"Market cap",TRUE) -> 46164487558
A155: 152 | B155: American International Group Inc. | D155: =_FV(Table_0[[#This Row],[Symbol]],"Industry") -> Insurance | E155: 0.144895 | F155: 61.82 | G155: -1.51 | H155: (-2.38%) | I155: =_FV(Table_0[[#This Row],[Symbol]],"P/E",TRUE) -> 3.7577 | J155: =_FV(Table_0[[#This Row],[Symbol]],"Market cap",TRUE) -> 45938453400
A156: 153 | B156: Centene Corporation | D156: =_FV(Table_0[[#This Row],[Symbol]],"Industry") -> Healthcare Providers & Services | E156: 0.143221 | F156: 82.14 | G156: 0.49 | H156: (0.60%) | I156: =_FV(Table_0[[#This Row],[Symbol]],"P/E",TRUE) -> 23.8306 | J156: =_FV(Table_0[[#This Row],[Symbol]],"Market cap",TRUE) -> 46512571758
A157: 154 | B157: Ford Motor Company | D157: =_FV(Table_0[[#This Row],[Symbol]],"Industry") -> Automobiles & Auto Parts | E157: 0.14277 | F157: 11.14 | G157: -0.64 | H157: (-5.46%) | I157: =_FV(Table_0[[#This Row],[Symbol]],"P/E",TRUE) -> 5.3357 | J157: =_FV(Table_0[[#This Row],[Symbol]],"Market cap",TRUE) -> 44768200690
A158: 155 | B158: Occidental Petroleum Corporation | D158: =_FV(Table_0[[#This Row],[Symbol]],"Industry") -> Oil & Gas | E158: 0.1427 | F158: 61.53 | G158: -2.2 | H158: (-3.45%) | I158: =_FV(Table_0[[#This Row],[Symbol]],"P/E",TRUE) -> 5.2756 | J158: =_FV(Table_0[[#This Row],[Symbol]],"Market cap",TRUE) -> 55920940002
A159: 156 | B159: Edwards Lifesciences Corporation | D159: =_FV(Table_0[[#This Row],[Symbol]],"Industry") -> Healthcare Equipment & Supplies | E159: 0.14241 | F159: 73.49 | G159: -1.27 | H159: (-1.70%) | I159: =_FV(Table_0[[#This Row],[Symbol]],"P/E",TRUE) -> 32.1852 | J159: =_FV(Table_0[[#This Row],[Symbol]],"Market cap",TRUE) -> 45435964145
A160: 157 | B160: AutoZone Inc. | D160: =_FV(Table_0[[#This Row],[Symbol]],"Industry") -> Specialty Retailers | E160: 0.142036 | F160: 2385.76 | G160: -44.72 | H160: (-1.84%) | I160: =_FV(Table_0[[#This Row],[Symbol]],"P/E",TRUE) -> 20.4338 | J160: =_FV(Table_0[[#This Row],[Symbol]],"Market cap",TRUE) -> 44794404916
A161: 158 | B161: Kimberly-Clark Corporation | D161: =_FV(Table_0[[#This Row],[Symbol]],"Industry") -> Personal & Household Products & Services | E161: 0.1419 | F161: 136.3 | G161: -0.66 | H161: (-0.48%) | I161: =_FV(Table_0[[#This Row],[Symbol]],"P/E",TRUE) -> 25.9955 | J161: =_FV(Table_0[[#This Row],[Symbol]],"Market cap",TRUE) -> 46024641407
A162: 159 | B162: Amphenol Corporation Class A | D162: =_FV(Table_0[[#This Row],[Symbol]],"Industry") -> Electronic Equipment & Parts | E162: 0.140701 | F162: 74.94 | G162: -1.85 | H162: (-2.40%) | I162: =_FV(Table_0[[#This Row],[Symbol]],"P/E",TRUE) -> 25.8749 | J162: =_FV(Table_0[[#This Row],[Symbol]],"Market cap",TRUE) -> 44578528995
A163: 160 | B163: Roper Technologies Inc. | D163: =_FV(Table_0[[#This Row],[Symbol]],"Industry") -> Software & IT Services | E163: 0.1407 | F163: 423.5 | G163: -7.34 | H163: (-1.70%) | I163: =_FV(Table_0[[#This Row],[Symbol]],"P/E",TRUE) -> 49.0447 | J163: =_FV(Table_0[[#This Row],[Symbol]],"Market cap",TRUE) -> 45691470000
A164: 161 | B164: Cadence Design Systems Inc. | D164: =_FV(Table_0[[#This Row],[Symbol]],"Industry") -> Software & IT Services | E164: 0.139118 | F164: 160.01 | G164: -5.4 | H164: (-3.26%) | I164: =_FV(Table_0[[#This Row],[Symbol]],"P/E",TRUE) -> 58.2182 | J164: =_FV(Table_0[[#This Row],[Symbol]],"Market cap",TRUE) -> 43893303160
A165: 162 | B165: Travelers Companies Inc. | D165: =_FV(Table_0[[#This Row],[Symbol]],"Industry") -> Insurance | E165: 0.137975 | F165: 186.43 | G165: -2.99 | H165: (-1.58%) | I165: =_FV(Table_0[[#This Row],[Symbol]],"P/E",TRUE) -> 13.8395 | J165: =_FV(Table_0[[#This Row],[Symbol]],"Market cap",TRUE) -> 43689404425
A166: 163 | B166: DexCom Inc. | D166: =_FV(Table_0[[#This Row],[Symbol]],"Industry") -> Healthcare Equipment & Supplies | E166: 0.13782 | F166: 112.21 | G166: -2.56 | H166: (-2.23%) | I166: =_FV(Table_0[[#This Row],[Symbol]],"P/E",TRUE) -> 214.3554 | J166: =_FV(Table_0[[#This Row],[Symbol]],"Market cap",TRUE) -> 43340090110
A167: 164 | B167: Public Storage | D167: =_FV(Table_0[[#This Row],[Symbol]],"Industry") -> Residential & Commercial REIT | E167: 0.137558 | F167: 278.86 | G167: -4.81 | H167: (-1.70%) | I167: =_FV(Table_0[[#This Row],[Symbol]],"P/E",TRUE) -> 11.5299 | J167: =_FV(Table_0[[#This Row],[Symbol]],"Market cap",TRUE) -> 48978524224
A168: 165 | B168: Agilent Technologies Inc. | D168: =_FV(Table_0[[#This Row],[Symbol]],"Industry") -> Healthcare Equipment & Supplies | E168: 0.137405 | F168: 147.49 | G168: -2.6 | H168: (-1.73%) | I168: =_FV(Table_0[[#This Row],[Symbol]],"P/E",TRUE) -> 35.9108 | J168: =_FV(Table_0[[#This Row],[Symbol]],"Market cap",TRUE) -> 43509550000
A169: 166 | B169: Moody's Corporation | D169: =_FV(Table_0[[#This Row],[Symbol]],"Industry") -> Professional & Commercial Services | E169: 0.136745 | F169: 276.4 | G169: -6.02 | H169: (-2.13%) | I169: =_FV(Table_0[[#This Row],[Symbol]],"P/E",TRUE) -> 33.749 | J169: =_FV(Table_0[[#This Row],[Symbol]],"Market cap",TRUE) -> 50686860000
A170: 167 | B170: Johnson Controls International plc | D170: =_FV(Table_0[[#This Row],[Symbol]],"Industry") -> Machinery, Equipment & Components | E170: 0.136591 | F170: 63.22 | G170: -1.4 | H170: (-2.17%) | I170: =_FV(Table_0[[#This Row],[Symbol]],"P/E",TRUE) -> 29.3572 | J170: =_FV(Table_0[[#This Row],[Symbol]],"Market cap",TRUE) -> 43413420558
A171: 168 | B171: Enphase Energy Inc. | D171: =_FV(Table_0[[#This Row],[Symbol]],"Industry") -> Renewable Energy | E171: 0.1318 | F171: 296.3 | G171: -20.8 | H171: (-6.56%) | I171: =_FV(Table_0[[#This Row],[Symbol]],"P/E",TRUE) -> 154.6648 | J171: =_FV(Table_0[[#This Row],[Symbol]],"Market cap",TRUE) -> 40274162680
A172: 169 | B172: Motorola Solutions Inc. | D172: =_FV(Table_0[[#This Row],[Symbol]],"Industry") -> Communications & Networking | E172: 0.131732 | F172: 252.43 | G172: -5.07 | H172: (-1.97%) | I172: =_FV(Table_0[[#This Row],[Symbol]],"P/E",TRUE) -> 37.8379 | J172: =_FV(Table_0[[#This Row],[Symbol]],"Market cap",TRUE) -> 42207103776
A173: 170 | B173: NXP Semiconductors NV | D173: =_FV(Table_0[[#This Row],[Symbol]],"Industry") -> Semiconductors & Semiconductor Equipment | E173: 0.131571 | F173: 154.4 | G173: -9.03 | H173: (-5.53%) | I173: =_FV(Table_0[[#This Row],[Symbol]],"P/E",TRUE) -> 16.2844 | J173: =_FV(Table_0[[#This Row],[Symbol]],"Market cap",TRUE) -> 40010428560
A174: 171 | B174: Corteva Inc | D174: =_FV(Table_0[[#This Row],[Symbol]],"Industry") -> Food & Tobacco | E174: 0.130835 | F174: 58.27 | G174: -1.12 | H174: (-1.88%) | I174: =_FV(Table_0[[#This Row],[Symbol]],"P/E",TRUE) -> 30.9943 | J174: =_FV(Table_0[[#This Row],[Symbol]],"Market cap",TRUE) -> 41636306808
A175: 172 | B175: Exelon Corporation | D175: =_FV(Table_0[[#This Row],[Symbol]],"Industry") -> Electrical Utilities & IPPs | E175: 0.129737 | F175: 41.95 | G175: -0.68 | H175: (-1.60%) | I175: =_FV(Table_0[[#This Row],[Symbol]],"P/E",TRUE) -> 20.8551 | J175: =_FV(Table_0[[#This Row],[Symbol]],"Market cap",TRUE) -> 41692445610
A176: 173 | B176: Autodesk Inc. | D176: =_FV(Table_0[[#This Row],[Symbol]],"Industry") -> Software & IT Services | E176: 0.128004 | F176: 186.81 | G176: -5.42 | H176: (-2.82%) | I176: =_FV(Table_0[[#This Row],[Symbol]],"P/E",TRUE) -> 67.7986 | J176: =_FV(Table_0[[#This Row],[Symbol]],"Market cap",TRUE) -> 40307267754
A177: 174 | B177: Biogen Inc. | D177: =_FV(Table_0[[#This Row],[Symbol]],"Industry") -> Pharmaceuticals | E177: 0.127585 | F177: 279.16 | G177: -7.7 | H177: (-2.68%) | I177: =_FV(Table_0[[#This Row],[Symbol]],"P/E",TRUE) -> 14.6152 | J177: =_FV(Table_0[[#This Row],[Symbol]],"Market cap",TRUE) -> 40199430824
A178: 175 | B178: Aflac Incorporated | D178: =_FV(Table_0[[#This Row],[Symbol]],"Industry") -> Insurance | E178: 0.126104 | F178: 70.7 | G178: -0.76 | H178: (-1.06%) | I178: =_FV(Table_0[[#This Row],[Symbol]],"P/E",TRUE) -> 9.1232 | J178: =_FV(Table_0[[#This Row],[Symbol]],"Market cap",TRUE) -> 43954236134
A179: 176 | B179: FedEx Corporation | D179: =_FV(Table_0[[#This Row],[Symbol]],"Industry") -> Freight & Logistics Services | E179: 0.12532 | F179: 172.84 | G179: 2.85 | H179: (1.68%) | I179: =_FV(Table_0[[#This Row],[Symbol]],"P/E",TRUE) -> 13.342 | J179: =_FV(Table_0[[#This Row],[Symbol]],"Market cap",TRUE) -> 43625576749
A180: 177 | B180: Devon Energy Corporation | D180: =_FV(Table_0[[#This Row],[Symbol]],"Industry") -> Oil & Gas | E180: 0.124103 | F180: 59.45 | G180: -2.31 | H180: (-3.74%) | I180: =_FV(Table_0[[#This Row],[Symbol]],"P/E",TRUE) -> 6.4773 | J180: =_FV(Table_0[[#This Row],[Symbol]],"Market cap",TRUE) -> 38855928000
A181: 178 | B181: Realty Income Corporation | D181: =_FV(Table_0[[#This Row],[Symbol]],"Industry") -> Residential & Commercial REIT | E181: 0.124064 | F181: 62.98 | G181: -1.26 | H181: (-1.96%) | I181: =_FV(Table_0[[#This Row],[Symbol]],"P/E",TRUE) -> 60.0683 | J181: =_FV(Table_0[[#This Row],[Symbol]],"Market cap",TRUE) -> 39502793560
A182: 179 | B182: Ross Stores Inc. | D182: =_FV(Table_0[[#This Row],[Symbol]],"Industry") -> Specialty Retailers | E182: 0.123497 | F182: 112.92 | G182: -2.21 | H182: (-1.92%) | I182: =_FV(Table_0[[#This Row],[Symbol]],"P/E",TRUE) -> 27.9447 | J182: =_FV(Table_0[[#This Row],[Symbol]],"Market cap",TRUE) -> 38893260740
A183: 180 | B183: Microchip Technology Incorporated | D183: =_FV(Table_0[[#This Row],[Symbol]],"Industry") -> Semiconductors & Semiconductor Equipment | E183: 0.123295 | F183: 68.62 | G183: -4.34 | H183: (-5.95%) | I183: =_FV(Table_0[[#This Row],[Symbol]],"P/E",TRUE) -> 22.2565 | J183: =_FV(Table_0[[#This Row],[Symbol]],"Market cap",TRUE) -> 37725096733
A184: 181 | B184: Williams Companies Inc. | D184: =_FV(Table_0[[#This Row],[Symbol]],"Industry") -> Oil & Gas Related Equipment and Services | E184: 0.123288 | F184: 32.36 | G184: -0.61 | H184: (-1.85%) | I184: =_FV(Table_0[[#This Row],[Symbol]],"P/E",TRUE) -> 20.1478 | J184: =_FV(Table_0[[#This Row],[Symbol]],"Market cap",TRUE) -> 39408390000
A185: 182 | B185: Marriott International Inc. Class A | D185: =_FV(Table_0[[#This Row],[Symbol]],"Industry") -> Hotels & Entertainment Services | E185: 0.123245 | F185: 145.89 | G185: -2.87 | H185: (-1.93%) | I185: =_FV(Table_0[[#This Row],[Symbol]],"P/E",TRUE) -> 22.6996 | J185: =_FV(Table_0[[#This Row],[Symbol]],"Market cap",TRUE) -> 46178379546
A186: 183 | B186: Cintas Corporation | D186: =_FV(Table_0[[#This Row],[Symbol]],"Industry") -> Professional & Commercial Services | E186: 0.122574 | F186: 448.7 | G186: -15.69 | H186: (-3.38%) | I186: =_FV(Table_0[[#This Row],[Symbol]],"P/E",TRUE) -> 37.7429 | J186: =_FV(Table_0[[#This Row],[Symbol]],"Market cap",TRUE) -> 45563376110
A187: 184 | B187: Arthur J. Gallagher & Co. | D187: =_FV(Table_0[[#This Row],[Symbol]],"Industry") -> Insurance | E187: 0.122323 | F187: 187.26 | G187: -2.22 | H187: (-1.17%) | I187: =_FV(Table_0[[#This Row],[Symbol]],"P/E",TRUE) -> 37.2619 | J187: =_FV(Table_0[[#This Row],[Symbol]],"Market cap",TRUE) -> 39481982736
A188: 185 | B188: Fidelity National Information Services Inc. | D188: =_FV(Table_0[[#This Row],[Symbol]],"Industry") -> Financial Technology (Fintech) & Infrastructure | E188: 0.122098 | F188: 65.14 | G188: -1.68 | H188: (-2.51%) | I188: =_FV(Table_0[[#This Row],[Symbol]],"P/E",TRUE) -> 43.6111 | J188: =_FV(Table_0[[#This Row],[Symbol]],"Market cap",TRUE) -> 38646806835
A189: 186 | B189: Trane Technologies plc | D189: =_FV(Table_0[[#This Row],[Symbol]],"Industry") -> Machinery, Equipment & Components | E189: 0.121765 | F189: 166.82 | G189: -4.14 | H189: (-2.42%) | I189: =_FV(Table_0[[#This Row],[Symbol]],"P/E",TRUE) -> 24.3438 | J189: =_FV(Table_0[[#This Row],[Symbol]],"Market cap",TRUE) -> 38419863786
A190: 187 | B190: L3Harris Technologies Inc | D190: =_FV(Table_0[[#This Row],[Symbol]],"Industry") -> Aerospace & Defense | E190: 0.121422 | F190: 203.59 | G190: -3.39 | H190: (-1.64%) | I190: =_FV(Table_0[[#This Row],[Symbol]],"P/E",TRUE) -> 36.0051 | J190: =_FV(Table_0[[#This Row],[Symbol]],"Market cap",TRUE) -> 38762202024
A191: 188 | B191: Chipotle Mexican Grill Inc. | D191: =_FV(Table_0[[#This Row],[Symbol]],"Industry") -> Hotels & Entertainment Services | E191: 0.121285 | F191: 1391.06 | G191: -34.13 | H191: (-2.39%) | I191: =_FV(Table_0[[#This Row],[Symbol]],"P/E",TRUE) -> 49.6057 | J191: =_FV(Table_0[[#This Row],[Symbol]],"Market cap",TRUE) -> 38560064010
A192: 189 | B192: Sysco Corporation | D192: =_FV(Table_0[[#This Row],[Symbol]],"Industry") -> Food & Drug Retailing | E192: 0.120608 | F192: 76.19 | G192: -0.95 | H192: (-1.23%) | I192: =_FV(Table_0[[#This Row],[Symbol]],"P/E",TRUE) -> 27.3251 | J192: =_FV(Table_0[[#This Row],[Symbol]],"Market cap",TRUE) -> 38610615825
A193: 190 | B193: Monster Beverage Corporation | D193: =_FV(Table_0[[#This Row],[Symbol]],"Industry") -> Beverages | E193: 0.120335 | F193: 99.96 | G193: -1.99 | H193: (-1.95%) | I193: =_FV(Table_0[[#This Row],[Symbol]],"P/E",TRUE) -> 45.0198 | J193: =_FV(Table_0[[#This Row],[Symbol]],"Market cap",TRUE) -> 52153490256
A194: 191 | B194: Hess Corporation | D194: =_FV(Table_0[[#This Row],[Symbol]],"Industry") -> Oil & Gas | E194: 0.118932 | F194: 135.07 | G194: -5.22 | H194: (-3.72%) | I194: =_FV(Table_0[[#This Row],[Symbol]],"P/E",TRUE) -> 23.3384 | J194: =_FV(Table_0[[#This Row],[Symbol]],"Market cap",TRUE) -> 41613939787
A195: 192 | B195: Xcel Energy Inc. | D195: =_FV(Table_0[[#This Row],[Symbol]],"Industry") -> Electrical Utilities & IPPs | E195: 0.118656 | F195: 69.27 | G195: -1.14 | H195: (-1.62%) | I195: =_FV(Table_0[[#This Row],[Symbol]],"P/E",TRUE) -> 22.9918 | J195: =_FV(Table_0[[#This Row],[Symbol]],"Market cap",TRUE) -> 37913376080
A196: 193 | B196: MSCI Inc. Class A | D196: =_FV(Table_0[[#This Row],[Symbol]],"Industry") -> Professional & Commercial Services | E196: 0.11711 | F196: 459.13 | G196: -13.23 | H196: (-2.80%) | I196: =_FV(Table_0[[#This Row],[Symbol]],"P/E",TRUE) -> 45.5766 | J196: =_FV(Table_0[[#This Row],[Symbol]],"Market cap",TRUE) -> 36711194592
A197: 194 | B197: IQVIA Holdings Inc | D197: =_FV(Table_0[[#This Row],[Symbol]],"Industry") -> Biotechnology & Medical Research | E197: 0.117055 | F197: 201.37 | G197: -3.18 | H197: (-1.55%) | I197: =_FV(Table_0[[#This Row],[Symbol]],"P/E",TRUE) -> 33.2871 | J197: =_FV(Table_0[[#This Row],[Symbol]],"Market cap",TRUE) -> 37386490160
A198: 195 | B198: Constellation Brands Inc. Class A | D198: =_FV(Table_0[[#This Row],[Symbol]],"Industry") -> Beverages | E198: 0.11667 | F198: 229.55 | G198: -3.85 | H198: (-1.65%) | I198: =_FV(Table_0[[#This Row],[Symbol]],"P/E",TRUE) -> 720.3173 | J198: =_FV(Table_0[[#This Row],[Symbol]],"Market cap",TRUE) -> 42343179106
A199: 196 | B199: Simon Property Group Inc. | D199: =_FV(Table_0[[#This Row],[Symbol]],"Industry") -> Residential & Commercial REIT | E199: 0.116457 | F199: 114.5 | G199: -2.05 | H199: (-1.76%) | I199: =_FV(Table_0[[#This Row],[Symbol]],"P/E",TRUE) -> 19.4549 | J199: =_FV(Table_0[[#This Row],[Symbol]],"Market cap",TRUE) -> 39270442568
A200: 197 | B200: Newmont Corporation | D200: =_FV(Table_0[[#This Row],[Symbol]],"Industry") -> Metals & Mining | E200: 0.114975 | F200: 46.87 | G200: -0.45 | H200: (-0.95%) | I200: =_FV(Table_0[[#This Row],[Symbol]],"P/E",TRUE) -> 38.8381 | J200: =_FV(Table_0[[#This Row],[Symbol]],"Market cap",TRUE) -> 37190626788
... 306 more rows

Sheet Industry analysis
A1: (Right Click Table and Click Refresh for updates)
A2: Industy | B2: Total Weight
A3: Software & IT Services | B3: 16.944908
A4: Pharmaceuticals | B4: 6.956013
A5: Computers, Phones & Household Electronics | B5: 6.433071
A6: Semiconductors & Semiconductor Equipment | B6: 4.77123
A7: Healthcare Equipment & Supplies | B7: 4.55161
A8: Oil & Gas | B8: 4.233373
A9: Banking Services | B9: 3.981239
A10: Diversified Retail | B10: 3.799736
A11: Healthcare Providers & Services | B11: 3.33964
A12: Machinery, Equipment & Components | B12: 2.905981
A13: Consumer Goods Conglomerates | B13: 2.799076
A14: Investment Banking & Investment Services | B14: 2.78527
A15: Residential & Commercial REIT | B15: 2.624892 | F15: Top industries weight distribution visual
A16: Electrical Utilities & IPPs | B16: 2.463743
A17: Insurance | B17: 2.353478 | D17: Sum of Top 5 Industries represented in the S&P 500 by Weight
A18: Specialty Retailers | B18: 2.225134 | D18: Software & IT Services | E18: =GETPIVOTDATA("Weight",$A$2,"Industry","Software & IT Services") -> 16.944908
A19: Food & Tobacco | B19: 2.171079 | D19: Computers, Phones & Household Electronics | E19: =GETPIVOTDATA("Weight",$A$2,"Industry","Computers, Phones & Household Electronics") -> 6.433071
A20: Hotels & Entertainment Services | B20: 2.019649 | D20: Pharmaceuticals | E20: =GETPIVOTDATA("Weight",$A$2,"Industry","Pharmaceuticals") -> 6.956013
A21: Beverages | B21: 1.947565 | D21: Semiconductors & Semiconductor Equipment | E21: =GETPIVOTDATA("Weight",$A$2,"Industry","Semiconductors & Semiconductor Equipment") -> 4.77123
A22: Automobiles & Auto Parts | B22: 1.893791 | D22: Oil & Gas | E22: =GETPIVOTDATA("Weight",$A$2,"Industry","Oil & Gas") -> 4.233373
A23: Aerospace & Defense | B23: 1.875176 | D23: Total | E23: =SUM(E18:E22) -> 39.338595
A24: Personal & Household Products & Services | B24: 1.746396
A25: Telecommunications Services | B25: 1.727156 | D25: Sum of the 5 Industries Least represented in the S&P 500 by Weight
A26: Professional & Commercial Services | B26: 1.72418 | D26: Office Equipment | E26: =GETPIVOTDATA("Weight",$A$2,"Industry","Office Equipment") -> 0.098004
A27: Chemicals | B27: 1.680494 | D27: Water Utilities | E27: =GETPIVOTDATA("Weight",$A$2,"Industry","Water Utilities") -> 0.086171
A28: Freight & Logistics Services | B28: 1.534667 | D28: Real Estate Operations | E28: =GETPIVOTDATA("Weight",$A$2,"Industry","Real Estate Operations") -> 0.075076
A29: Communications & Networking | B29: 0.939558 | D29: Household Goods | E29: =GETPIVOTDATA("Weight",$A$2,"Industry","Household Goods") -> 0.053979
A30: Food & Drug Retailing | B30: 0.933116 | D30: Natural Gas Utilities | E30: =GETPIVOTDATA("Weight",$A$2,"Industry","Natural Gas Utilities") -> 0.04905
A31: Biotechnology & Medical Research | B31: 0.859927 | D31: Total | E31: =SUM(E26:E30) -> 0.36228
A32: Oil & Gas Related Equipment and Services | B32: 0.779941
A33: Media & Publishing | B33: 0.768133
A34: Multiline Utilities | B34: 0.532446
A35: Financial Technology (Fintech) & Infrastructure | B35: 0.463234
A36: Textiles & Apparel | B36: 0.445793
A37: Metals & Mining | B37: 0.409814
A38: #FIELD! | B38: 0.337909
A39: Electronic Equipment & Parts | B39: 0.312123
A40: Homebuilding & Construction Supplies | B40: 0.269116
A41: Containers & Packaging | B41: 0.255791
A42: Renewable Energy | B42: 0.230715
A43: Passenger Transportation Services | B43: 0.212955
A44: Construction Materials | B44: 0.138636
A45: Construction & Engineering | B45: 0.110559
A46: Leisure Products | B46: 0.10862
A47: Office Equipment | B47: 0.098004
A48: Water Utilities | B48: 0.086171
A49: Real Estate Operations | B49: 0.075076
A50: Household Goods | B50: 0.053979
A51: Natural Gas Utilities | B51: 0.04905
A52: Grand Total | B52: 99.959213

Sheet Price Changes
A1: (Right Click Table and Click Refresh for updates) | D1: 20 Largest Price Increases | G1: 20 Largest Price Decreases
A2: Companies | B2: Change in Price
A3: Booking Holdings Inc. | B3: 27.07 | D3: =A3 -> Booking Holdings Inc. | E3: =GETPIVOTDATA("Chg",$A$2,"Company",D3) -> 27.07 | G3: =A487:A506 -> Paycom Software Inc. | H3: =GETPIVOTDATA("Chg",$A$2,"Company",G3) -> -5.77
A4: Chipotle Mexican Grill Inc. | B4: 13.4 | D4: =A4 -> Chipotle Mexican Grill Inc. | E4: =GETPIVOTDATA("Chg",$A$2,"Company",D4) -> 13.4 | G4: Old Dominion Freight Line Inc. | H4: =GETPIVOTDATA("Chg",$A$2,"Company",G4) -> -5.98
A5: Moderna Inc. | B5: 11.86 | D5: Moderna Inc. | E5: 11.86 | G5: Equinix Inc. | H5: -6.04
A6: Deere & Company | B6: 9.86 | D6: Deere & Company | E6: 9.86 | G6: United Parcel Service Inc. Class B | H6: -6.13
A7: Adobe Incorporated | B7: 9.23 | D7: Adobe Incorporated | E7: 9.23 | G7: UnitedHealth Group Incorporated | H7: -6.61
A8: TransDigm Group Incorporated | B8: 8.11 | D8: TransDigm Group Incorporated | E8: 8.11 | G8: FedEx Corporation | H8: -7.11
A9: Accenture Plc Class A | B9: 6.5 | D9: Accenture Plc Class A | E9: 6.5 | G9: Broadcom Inc. | H9: -7.12
A10: Lockheed Martin Corporation | B10: 4.36 | D10: Lockheed Martin Corporation | E10: 4.36 | G10: Public Storage | H10: -7.25
A11: ServiceNow Inc. | B11: 4.17 | D11: ServiceNow Inc. | E11: 4.17 | G11: Laboratory Corporation of America Holdings | H11: -7.63
A12: Rockwell Automation Inc. | B12: 3.94 | D12: Rockwell Automation Inc. | E12: 3.94 | G12: Mettler-Toledo International Inc. | H12: -7.83
A13: Caterpillar Inc. | B13: 3.71 | D13: Caterpillar Inc. | E13: 3.71 | G13: Teleflex Incorporated | H13: -7.92
A14: Cooper Companies Inc. | B14: 3.63 | D14: Cooper Companies Inc. | E14: 3.63 | G14: IDEXX Laboratories Inc. | H14: -8.64
A15: EPAM Systems Inc. | B15: 3.15 | D15: EPAM Systems Inc. | E15: 3.15 | G15: KLA Corporation | H15: -8.66
A16: Charter Communications Inc. Class A | B16: 3.13 | D16: Charter Communications Inc. Class A | E16: 3.13 | G16: Cigna Corporation | H16: -9.99
A17: Zebra Technologies Corporation Class A | B17: 2.94 | D17: Zebra Technologies Corporation Class A | E17: 2.94 | G17: Tesla Inc | H17: -11.92
A18: Everest Re Group Ltd. | B18: 2.82 | D18: Everest Re Group Ltd. | E18: 2.82 | G18: Thermo Fisher Scientific Inc. | H18: -12.38
A19: Chevron Corporation | B19: 2.79 | D19: Chevron Corporation | E19: 2.79 | G19: Humana Inc. | H19: -14.84
A20: Regeneron Pharmaceuticals Inc. | B20: 2.74 | D20: Regeneron Pharmaceuticals Inc. | E20: 2.74 | G20: FactSet Research Systems Inc. | H20: -22.9
A21: Boeing Company | B21: 2.6 | D21: Boeing Company | E21: 2.6 | G21: AutoZone Inc. | H21: -24.16
A22: Meta Platforms Inc. Class A | B22: 2.6 | D22: Meta Platforms Inc. Class A | E22: 2.6 | G22: NVR Inc. | H22: -49.65
A23: Chubb Limited | B23: 2.53
A24: Costco Wholesale Corporation | B24: 2.49
A25: ResMed Inc. | B25: 2.41
A26: International Business Machines Corporation | B26: 2.39
A27: General Dynamics Corporation | B27: 2.32
A28: Travelers Companies Inc. | B28: 2.29
A29: General Electric Company | B29: 2.27
A30: ConocoPhillips | B30: 2.21
A31: Hess Corporation | B31: 2.19
A32: Valero Energy Corporation | B32: 2.17
A33: Newmont Corporation | B33: 2.09
A34: Linde plc | B34: 2.08
A35: Honeywell International Inc. | B35: 2.08
A36: Phillips 66 | B36: 2.03
A37: Align Technology Inc. | B37: 1.99
A38: Intuitive Surgical Inc. | B38: 1.99
A39: Berkshire Hathaway Inc. Class B | B39: 1.97
A40: Marathon Petroleum Corporation | B40: 1.94
A41: Teledyne Technologies Incorporated | B41: 1.92
A42: Avery Dennison Corporation | B42: 1.88
A43: Eli Lilly and Company | B43: 1.86
A44: IDEX Corporation | B44: 1.85
A45: Arthur J. Gallagher & Co. | B45: 1.8
A46: Elevance Health Inc. | B46: 1.76
A47: Estee Lauder Companies Inc. Class A | B47: 1.76
A48: Arch Capital Group Ltd. | B48: 1.7
A49: Mastercard Incorporated Class A | B49: 1.69
A50: Ecolab Inc. | B50: 1.63
A51: Discover Financial Services | B51: 1.54
A52: PNC Financial Services Group Inc. | B52: 1.52
A53: Schlumberger NV | B53: 1.47
A54: Ameriprise Financial Inc. | B54: 1.47
A55: SVB Financial Group | B55: 1.45
A56: Exxon Mobil Corporation | B56: 1.43
A57: IQVIA Holdings Inc | B57: 1.4
A58: Halliburton Company | B58: 1.36
A59: Diamondback Energy Inc. | B59: 1.36
A60: W. R. Berkley Corporation | B60: 1.34
A61: Microsoft Corporation | B61: 1.33
A62: Darden Restaurants Inc. | B62: 1.27
A63: F5 Inc. | B63: 1.25
A64: Cincinnati Financial Corporation | B64: 1.25
A65: American International Group Inc. | B65: 1.25
A66: Walt Disney Company | B66: 1.24
A67: Pioneer Natural Resources Company | B67: 1.21
A68: MetLife Inc. | B68: 1.17
A69: PerkinElmer Inc. | B69: 1.16
A70: Prudential Financial Inc. | B70: 1.13
A71: DexCom Inc. | B71: 1.12
A72: Marsh & McLennan Companies Inc. | B72: 1.12
A73: Walmart Inc. | B73: 1.09
A74: Universal Health Services Inc. Class B | B74: 1.09
A75: Wynn Resorts Limited | B75: 1.01
A76: Agilent Technologies Inc. | B76: 0.98
A77: Allstate Corporation | B77: 0.98
A78: Keysight Technologies Inc | B78: 0.91
A79: Match Group Inc. | B79: 0.9
A80: SBA Communications Corp. Class A | B80: 0.9
A81: Vulcan Materials Company | B81: 0.9
A82: Fiserv Inc. | B82: 0.89
A83: Jack Henry & Associates Inc. | B83: 0.89
A84: Motorola Solutions Inc. | B84: 0.88
A85: Martin Marietta Materials Inc. | B85: 0.88
A86: Global Payments Inc. | B86: 0.87
A87: Ingersoll Rand Inc. | B87: 0.84
A88: CF Industries Holdings Inc. | B88: 0.83
A89: Illinois Tool Works Inc. | B89: 0.8
A90: AMETEK Inc. | B90: 0.77
A91: Roper Technologies Inc. | B91: 0.76
A92: Aon Plc Class A | B92: 0.75
A93: Targa Resources Corp. | B93: 0.74
A94: Monster Beverage Corporation | B94: 0.74
A95: Mosaic Company | B95: 0.73
A96: American Express Company | B96: 0.69
A97: Howmet Aerospace Inc. | B97: 0.69
A98: Baker Hughes Company Class A | B98: 0.66
A99: Lamb Weston Holdings Inc. | B99: 0.64
A100: CDW Corp. | B100: 0.61
A101: Alphabet Inc. Class A | B101: 0.61
A102: ANSYS Inc. | B102: 0.6
A103: Aptiv PLC | B103: 0.59
A104: Corteva Inc | B104: 0.59
A105: Tyson Foods Inc. Class A | B105: 0.57
A106: Raytheon Technologies Corporation | B106: 0.57
A107: Southern Company | B107: 0.56
A108: Alphabet Inc. Class C | B108: 0.55
A109: Willis Towers Watson Public Limited Company | B109: 0.54
A110: Principal Financial Group Inc. | B110: 0.54
A111: Zimmer Biomet Holdings Inc. | B111: 0.54
A112: Western Digital Corporation | B112: 0.52
A113: United Airlines Holdings Inc. | B113: 0.51
A114: Visa Inc. Class A | B114: 0.51
A115: Catalent Inc | B115: 0.49
A116: Fortinet Inc. | B116: 0.49
A117: Raymond James Financial Inc. | B117: 0.48
A118: Incyte Corporation | B118: 0.48
A119: Sherwin-Williams Company | B119: 0.47
A120: Advanced Micro Devices Inc. | B120: 0.47
A121: Fox Corporation Class B | B121: 0.47
A122: Emerson Electric Co. | B122: 0.46
A123: Fox Corporation Class A | B123: 0.46
A124: LyondellBasell Industries NV | B124: 0.45
A125: Oracle Corporation | B125: 0.44
A126: JPMorgan Chase & Co. | B126: 0.44
A127: Akamai Technologies Inc. | B127: 0.43
A128: Westinghouse Air Brake Technologies Corporation | B128: 0.41
A129: Celanese Corporation | B129: 0.41
A130: International Flavors & Fragrances Inc. | B130: 0.38
A131: Sysco Corporation | B131: 0.37
A132: Boston Properties Inc. | B132: 0.36
A133: Conagra Brands Inc. | B133: 0.36
A134: Expedia Group Inc. | B134: 0.35
A135: Snap-on Incorporated | B135: 0.34
A136: Fidelity National Information Services Inc. | B136: 0.34
A137: Globe Life Inc. | B137: 0.33
A138: Dominion Energy Inc | B138: 0.33
A139: Dow Inc. | B139: 0.32
A140: SolarEdge Technologies Inc. | B140: 0.32
A141: Evergy Inc. | B141: 0.32
A142: Philip Morris International Inc. | B142: 0.31
A143: Zions Bancorporation N.A. | B143: 0.3
A144: Exelon Corporation | B144: 0.29
A145: Live Nation Entertainment Inc. | B145: 0.29
A146: APA Corp. | B146: 0.29
A147: A. O. Smith Corporation | B147: 0.28
A148: Cummins Inc. | B148: 0.27
A149: Aflac Incorporated | B149: 0.27
A150: Merck & Co. Inc. | B150: 0.27
A151: Interpublic Group of Companies Inc. | B151: 0.27
A152: Republic Services Inc. | B152: 0.27
A153: Synchrony Financial | B153: 0.27
A154: LKQ Corporation | B154: 0.25
A155: United Rentals Inc. | B155: 0.25
A156: Textron Inc. | B156: 0.25
A157: FirstEnergy Corp. | B157: 0.24
A158: Nucor Corporation | B158: 0.24
A159: Franklin Resources Inc. | B159: 0.23
A160: Comcast Corporation Class A | B160: 0.22
A161: Fortive Corp. | B161: 0.22
A162: Walgreens Boots Alliance Inc. | B162: 0.21
A163: Eastman Chemical Company | B163: 0.21
A164: CMS Energy Corporation | B164: 0.2
A165: Broadridge Financial Solutions Inc. | B165: 0.2
A166: AT&T Inc. | B166: 0.2
A167: Hewlett Packard Enterprise Co. | B167: 0.19
A168: NetApp Inc. | B168: 0.19
A169: DXC Technology Co. | B169: 0.18
A170: Kroger Co. | B170: 0.18
A171: Coterra Energy Inc. | B171: 0.17
A172: AES Corporation | B172: 0.16
A173: Albemarle Corporation | B173: 0.16
A174: Mondelez International Inc. Class A | B174: 0.15
A175: Pfizer Inc. | B175: 0.14
A176: Host Hotels & Resorts Inc. | B176: 0.13
A177: Bank of America Corp | B177: 0.13
A178: Marathon Oil Corporation | B178: 0.12
A179: Quanta Services Inc. | B179: 0.12
A180: Bank of New York Mellon Corp | B180: 0.12
A181: NRG Energy Inc. | B181: 0.12
A182: Alaska Air Group Inc. | B182: 0.12
A183: Intercontinental Exchange Inc. | B183: 0.11
A184: Amazon.com Inc. | B184: 0.11
A185: Juniper Networks Inc. | B185: 0.11
A186: Altria Group Inc | B186: 0.1
A187: Waste Management Inc. | B187: 0.1
A188: Kinder Morgan Inc Class P | B188: 0.1
A189: Devon Energy Corporation | B189: 0.1
A190: Huntington Bancshares Incorporated | B190: 0.09
A191: WEC Energy Group Inc | B191: 0.09
A192: Xcel Energy Inc. | B192: 0.09
A193: HP Inc. | B193: 0.09
A194: News Corporation Class A | B194: 0.08
A195: Regions Financial Corporation | B195: 0.08
A196: Garmin Ltd. | B196: 0.07
A197: American Airlines Group Inc. | B197: 0.07
A198: FLEETCOR Technologies Inc. | B198: 0.07
A199: MGM Resorts International | B199: 0.07
A200: Procter & Gamble Company | B200: 0.06
... 307 more rows
